Cogmind - Beta 11 X8 @@@ ROGUE MODE // 2021.11.19 @ 22:53:58 Player: Runia Result: Destroyed by MAIN.C with Omega Cannon Performance ------------- Evolutions (9) 4500 Regions Visited (36) 7200 Robots Destroyed (442) 2210 Value Destroyed (18478) 18478 Prototype IDs (91) 1820 Alien Tech Used (4) 800 Bonus (7447) 7447 TOTAL SCORE: 42455 Bonus ------- High Alert Combat Kills 1216 Follower Combat Kills 1449 Network Hubs Disabled 400 Aligned with FarCom 300 Destroyed Z-Imprinter 1000 Met Zhirov 300 Met Warlord at Base 500 MAIN.C Attacked Warlord 500 Warlord Defense Kill 1376 Built Enhanced Grunts 300 A7 Reached Mainframe 300 Met R17 at Cetus 500 Found Hidden Lab 3000 Destroyed MAIN.C Guards 500 Met MAIN.C 5000 Destroyed MAIN.C Shell 5000 Met Warlord at Command 2000 Friendly Fire -16194 Cogmind --------- Core Integrity 0/1600 Matter 290/300 Energy 100/100 System Corruption 9% Temperature Cool (0) Movement Core (100) Ox1 Location -1/Command Parts ------- > --- POWER (3) -------- (None) > --- PROPULSION (8) --- (None) > --- UTILITY (11) ----- (None) > --- WEAPON (4) ------- Vibroblade > --- INVENTORY (5) ---- Experimental Coolant Injector Advanced Micro-nuke Launcher Vibroblade Peak State ------------ > --- POWER ------------ Particle Reactor Light Particle Reactor Light Particle Reactor > --- PROPULSION ------- Improved Antigrav System Improved Antigrav System Improved Antigrav System Combat Antigrav System Combat Antigrav System Combat Linear Gravjet Combat Linear Gravjet Combat Linear Gravjet > --- UTILITY ---------- Advanced Cooling System High-capacity Storage Unit Long-range Terrain Scanner Advanced Target Analyzer Advanced Armor Integrity Analyzer Advanced Transmission Jammer Medium Regenerative Plating Antimissile System Advanced Hacking Suite Deep Network Scanner Ghost Barrier > --- WEAPON ----------- Vibroblade Vibroblade Vibroblade Vibroblade > --- INVENTORY -------- Antigrav System Combat Gravmag System Advanced Energy Well Advanced Melee Analysis Suite Advanced Armor Integrity Analyzer Microactuators Advanced Reaction Control System Centrium Medium Armor Plating Heavy Regenerative Plating EM Dispersion Field Advanced Force Field Advanced Component Analysis Suite Transdimensional Reconstructor Warp Cannon Warp Cannon Advanced Micro-nuke Launcher Advanced Micro-nuke Launcher Vibroblade Vibroblade [Rating: 211] Favorites ----------- Power Quantum Reactor Engine Heavy Ion Engine Power Core Fission Core Reactor Quantum Reactor Propulsion Combat Gravmag System Treads Armored Treads Leg Improved Carbon-fiber Leg Wheel Armored Huge Wheel Hover Unit Combat Gravmag System Flight Unit Nuclear Pulse Array Utility High-capacity Storage Unit Device Advanced Transmission Jammer Storage High-capacity Storage Unit Processor Advanced Signal Interpreter Hackware Ghost Barrier Protection Medium Regenerative Plating Weapon Force Lance Energy Gun Precision Beam Rifle Energy Cannon Heavy Phase Cannon Ballistic Gun Improved Assault Rifle Launcher Grenade Launcher Special Weapon Plasma Cutter Impact Weapon Power Maul Slashing Weapon Vibroblade Piercing Weapon Force Lance Special Melee Weapon Advanced Datajack Build | -11 -10 -10 -9 -9 -9 -8 -8 -7 -7 -7 -7 -7 -6 -6 -6 -6 -6 -6 -5 -5 -5 -5 -4 -4 -4 -4 -4 -4 -4 -3 -3 -3 -3 -2 -1 -1 ------- Run | Scr Mat Min Mat Min Exi Min Mat Fac Low Low Zio Dee Pro Fac Ext Cet Arc Hub Fac Upp Upp War Pro Fac Was Fac Upp Upp Zhi Pro Res Arm Lab Res Acc Com Slots Evolved 18 | . . . 2 . . . 2 2 . . . . . 2 . . . . 2 . . . . 2 . . . . . . 2 . . 2 2 . Power 1 | . . . . . . . . . . . . . . . . . . . 1 . . . . . . . . . . . . . . . . . Propulsion 6 | . . . . . . . 1 1 . . . . . 1 . . . . . . . . . 1 . . . . . . 1 . . 1 . . Utility 9 | . . . 1 . . . 1 1 . . . . . 1 . . . . 1 . . . . 1 . . . . . . 1 . . 1 1 . Weapon 2 | . . . 1 . . . . . . . . . . . . . . . . . . . . . . . . . . . . . . . 1 . Parts Attached 591 | 2 13 4 28 6 . 1 22 12 5 10 2 10 4 31 20 13 13 50 22 4 3 14 15 4 13 70 2 8 7 6 27 26 3 16 16 89 Power 32 | . . . 3 . . . 1 1 . 1 . . . 1 . 1 . 3 1 . . 1 2 . . 3 . . 1 . . 3 . 2 2 6 Engine 7 | . . . 3 . . . 1 1 . . . . . . . . . . 1 . . . . . . . . . . . . . . . 1 . Core 3 | . . . . . . . . . . 1 . . . . . . . . . . . . 1 . . . . . . . . . . . 1 . Reactor 22 | . . . . . . . . . . . . . . 1 . 1 . 3 . . . 1 1 . . 3 . . 1 . . 3 . 2 . 6 Propulsion 79 | 2 2 1 4 . . . 4 5 . . . 1 . 1 2 3 4 6 2 . . 5 2 1 . 6 . . . . 3 4 . 4 2 15 Treads 13 | 2 2 1 4 . . . 3 . . . . . . . . . . . . . . . . . . . . . . . . . . . . 1 Leg 27 | . . . . . . . . 5 . . . 1 . 1 2 3 4 6 2 . . 1 . . . . . . . . 1 1 . . . . Wheel 2 | . . . . . . . 1 . . . . . . . . . . . . . . . . . . 1 . . . . . . . . . . Hover 35 | . . . . . . . . . . . . . . . . . . . . . . 4 2 1 . 5 . . . . 1 2 . 4 2 14 Flight 2 | . . . . . . . . . . . . . . . . . . . . . . . . . . . . . . . 1 1 . . . . Utility 237 | . 2 2 5 3 . . 4 2 2 5 . 4 2 16 8 1 4 24 11 4 2 3 3 2 3 34 2 4 6 . 10 11 3 7 3 45 Device 138 | . 1 2 1 . . . 1 1 1 2 . 2 1 7 6 . 3 12 6 2 1 1 1 2 1 21 1 4 4 . 7 9 3 3 3 29 Storage 16 | . 1 . 2 . . . . . . . . . . 1 2 . . 1 1 . . . . . 1 1 1 . . . . . . . . 5 Processor 15 | . . . . 2 . . 1 . 1 . . . . 1 . . . 1 . 1 . 1 . . 1 . . . . . 1 1 . 1 . 3 Hackware 8 | . . . . . . . 1 . . . . . . . . . . . . . . . . . . . . . . . . 1 . 2 . 4 Protection 60 | . . . 2 1 . . 1 1 . 3 . 2 1 7 . 1 1 10 4 1 1 1 2 . . 12 . . 2 . 2 . . 1 . 4 Artifact . | . . . . . . . . . . . . . . . . . . . . . . . . . . . . . . . . . . . . . Weapon 243 | . 9 1 16 3 . 1 13 4 3 4 2 5 2 13 10 8 5 17 8 . 1 5 8 1 10 27 . 4 . 6 14 8 . 3 9 23 Energy Gun 39 | . 2 . 3 . . . . . . . . 1 . 6 5 5 3 2 2 . . . . . 3 7 . . . . . . . . . . Energy Cannon 47 | . . . . . . . 1 1 . . . . . 2 . 1 . 5 4 . . 3 3 1 . 4 . . . 1 6 3 . 1 4 7 Ballistic Gun 33 | . 4 1 8 2 . . 9 2 2 2 . 1 . 1 . . . 1 . . . . . . . . . . . . . . . . . . Ballistic Cannon . | . . . . . . . . . . . . . . . . . . . . . . . . . . . . . . . . . . . . . Launcher 29 | . 3 . 5 1 . 1 1 . . 2 . . 1 3 1 2 . . . . . . 1 . . 2 . 1 . 2 1 . . . . 2 Special Weapon 36 | . . . . . . . . . . . 1 3 . . 3 . 1 5 2 . 1 2 3 . 6 3 . 1 . 1 4 . . . . . Impact Weapon 10 | . . . . . . . 2 1 1 . 1 . 1 1 1 . . 2 . . . . . . . . . . . . . . . . . . Slashing Weapon 25 | . . . . . . . . . . . . . . . . . . . . . . . . . . . . . . . . 4 . 2 5 14 Piercing Weapon 23 | . . . . . . . . . . . . . . . . . . 2 . . . . 1 . 1 11 . 2 . 2 3 1 . . . . Special Melee Weapon 1 | . . . . . . . . . . . . . . . . . 1 . . . . . . . . . . . . . . . . . . . Unidentified Prototypes 42 | . . 1 1 . . . . . . 1 1 3 . 3 . 2 2 8 2 . . 4 . . . 1 . . 4 . 1 2 2 1 . 3 Corrupted Parts 2 | . . . . . . . . . . . . . . . . . . . . . . . 2 . . . . . . . . . . . . . System Corruption 10 | . . . . . . . . . . . . . . . . . . . . . . . 10 . . . . . . . . . . . . . Parts Lost 66 | . . . 6 . . . 2 . . 1 . . . . . 1 . 6 1 . . 1 1 . . 3 . . . 1 1 3 . 1 4 34 Power 11 | . . . 2 . . . . . . 1 . . . . . . . 2 . . . . . . . . . . . . . . . . 2 4 Propulsion 23 | . . . . . . . . . . . . . . . . 1 . . 1 . . . . . . 1 . . . 1 1 1 . 1 1 15 Utility 25 | . . . 3 . . . 1 . . . . . . . . . . 2 . . . 1 . . . 2 . . . . . 2 . . 1 13 Weapon 7 | . . . 1 . . . 1 . . . . . . . . . . 2 . . . . 1 . . . . . . . . . . . . 2 Highest Loss Streak 30 | . . . 2 . . . 1 . . 1 . . . . . 1 . 2 1 . . 1 1 . . 2 . . . 1 1 2 . 1 3 30 Average Slot Usage (%) 95 | . 99 100 94 97 100 100 92 97 99 100 100 99 100 99 100 99 96 96 91 94 94 94 87 91 80 96 100 100 99 98 89 92 85 94 96 89 Engine 3 | . 14 14 10 11 11 11 9 7 7 3 . . . . . . . . 2 5 5 3 . . . . . . . . . . . . . . Core 1 | . . . . . . . . . . 3 7 7 7 5 . . . . . . . . . . . . . . . . . . . . . 2 Reactor 4 | . . . . . . . . . . . . . . . 6 6 6 5 5 5 5 5 4 5 5 7 10 10 10 10 9 9 4 11 9 5 Treads 5 | . 28 28 22 22 22 22 15 1 . . . . . . . . . . . . . . . . . . . . . . . . . . . . Leg 13 | . . . . . . . . 25 30 30 30 30 30 33 33 32 33 32 29 29 29 27 . . . . . . . . . . . . . . Hover 9 | . . . . . . . . . . . . . . . . . . . . . . 1 28 31 31 30 31 31 31 29 22 25 27 28 29 29 Device 9 | . 6 14 6 . . . 3 7 7 5 7 4 6 7 11 13 13 8 7 11 6 4 7 10 12 12 20 21 20 21 18 16 15 12 15 12 Storage 8 | . 21 14 11 11 11 11 9 7 7 7 7 7 7 6 7 6 6 6 10 11 11 11 6 5 5 6 5 5 5 5 4 4 4 4 3 4 Processor 8 | . . . . 8 11 11 16 15 15 15 15 15 15 8 6 6 6 8 5 11 11 12 11 10 11 12 5 5 5 5 8 10 13 8 7 7 Protection 8 | . . . 10 11 11 11 6 7 7 8 7 9 7 15 13 13 9 14 14 4 9 9 13 15 2 7 10 10 10 10 9 5 . 3 3 2 Energy Gun 3 | . 14 14 3 . . . . . . . . . . 7 19 19 13 8 . . . . . . 4 4 . . . . . . . . . . Energy Cannon 1 | . . . . . . . . . . . . . . . . . . 3 5 5 5 4 3 2 . . . . . . 1 1 . . 1 1 Ballistic Gun 8 | . 13 14 29 32 33 26 24 20 21 20 22 14 15 7 . . . . . . . . . . . . . . . . . . . . . . Slashing Weapon 1 | . . . . . . . . . . . . . . . . . . . . . . . . . . . . . . . . 8 13 11 10 8 Piercing Weapon 2 | . . . . . . . . . . . . . . . . . . 1 5 5 5 4 4 5 5 9 15 14 15 14 11 2 . . . . Naked Turns 4 | . . . . . . . . . . . . . . . . . . . . . . . . . . . . . . . . . . . . 4 Heaviest Build 132 | 12 36 30 62 59 57 59 66 71 68 81 78 84 79 86 82 91 82 100 116 95 101 116 117 132 132 119 119 125 125 115 122 118 91 121 123 128 Greatest Support 148 | 40 46 46 46 40 40 40 62 74 74 74 74 80 80 105 110 110 136 146 148 148 148 148 70 84 84 86 81 81 81 81 70 78 78 115 119 117 Greatest Overweight (x) 4 | . . . 1 1 1 1 2 2 . 1 1 1 . . . . . . . . . 2 2 1 1 1 1 1 1 1 2 2 1 1 1 4 Average Overweight (x) . | . . . . 1 1 1 1 . . . . . . . . . . . . . . . 1 1 . 1 1 1 1 1 1 1 . . . . Largest Inventory Capacity 20 | 8 15 15 20 20 20 20 20 20 20 20 20 20 20 20 20 20 20 20 20 20 20 20 20 20 20 20 20 20 20 20 20 20 20 20 20 20 Average Capacity 19 | 8 14 15 18 20 20 20 20 20 20 20 20 20 20 20 20 20 20 20 20 20 20 20 20 20 20 20 20 20 20 20 20 20 20 20 20 19 Most Carried 20 | 5 15 15 20 20 20 20 20 20 20 20 20 20 20 20 20 20 20 20 20 20 20 20 20 15 20 20 20 20 20 20 20 20 20 20 20 20 Average Carried 18 | 3 9 12 16 19 19 19 19 19 19 19 19 19 20 19 19 19 19 19 17 19 19 19 17 14 19 19 20 19 19 20 19 19 16 19 19 18 Final Capacity 20 | 8 15 15 20 20 20 20 20 20 20 20 20 20 20 20 20 20 20 20 20 20 20 20 20 20 20 20 20 20 20 20 20 20 20 20 20 5 Final Carried 20 | 2 13 13 20 20 20 20 20 20 20 20 20 20 20 20 20 20 20 17 20 20 20 20 16 15 20 20 20 20 20 20 20 19 20 20 20 3 Class Distribution -------------------- 35% | Scavenger-Mutant 14% | Mutant 11% | Skirmisher 11% | Tank 5% | Hacker-Mutant 4% | Gunner 4% | Scavenger-Assassin 3% | Assassin Dominant Class ---------------- Mutant | -10/Materials Mutant | -10/Mines Tank | -9/Materials Tank | -9/Mines Gunner | -9/Exiles Mutant | -8/Mines Skirmisher | -8/Materials Skirmisher | -7/Factory Skirmisher | -7/Lower Caves Skirmisher | -7/Lower Caves Skirmisher | -7/Zion Mutant | -7/Deep Caves Assassin | -6/Proximity Caves Mutant | -6/Factory Tank | -6/Extension Commander-Tank | -6/Cetus Scavenger-Mutant | -6/Archives Scavenger-Mutant | -6/Hub_04(d) Scavenger-Mutant | -5/Factory Scavenger-Mutant | -5/Upper Caves Scavenger-Mutant | -5/Upper Caves Scavenger-Mutant | -5/Warlord Scavenger-Mutant | -4/Proximity Caves Scavenger-Assassin | -4/Factory Scavenger-Assassin | -4/Waste Scavenger-Mutant | -4/Factory Scavenger-Mutant | -4/Upper Caves Scavenger-Mutant | -4/Upper Caves Scavenger-Mutant | -4/Zhirov Scavenger-Mutant | -3/Proximity Caves Scavenger-Mutant | -3/Research Hacker-Mutant | -3/Armory Scavenger-Mutant | -3/Lab Hacker-Assassin | -2/Research Hacker-Assassin | -1/Access Hacker-Mutant | -1/Command Resources | -11 -10 -10 -9 -9 -9 -8 -8 -7 -7 -7 -7 -7 -6 -6 -6 -6 -6 -6 -5 -5 -5 -5 -4 -4 -4 -4 -4 -4 -4 -3 -3 -3 -3 -2 -1 -1 ----------- Run | Scr Mat Min Mat Min Exi Min Mat Fac Low Low Zio Dee Pro Fac Ext Cet Arc Hub Fac Upp Upp War Pro Fac Was Fac Upp Upp Zhi Pro Res Arm Lab Res Acc Com Matter Collected 9376 | 200 322 67 654 411 . 87 802 225 301 188 . 71 170 352 349 167 166 567 534 27 . 292 129 42 325 632 70 108 . 45 337 225 . 460 140 911 Remotely . | . . . . . . . . . . . . . . . . . . . . . . . . . . . . . . . . . . . . . Salvage Created 20438 | . 444 51 1322 376 . 158 1211 271 418 384 . 326 251 339 1593 611 961 1498 796 . 38 151 454 42 1969 1500 82 311 . 99 953 151 . 339 366 2973 Parts 963 | . 31 3 87 17 . 30 58 18 9 16 . 15 9 20 45 25 75 90 33 . . 7 11 3 45 68 1 14 . 7 47 10 . 14 17 138 Haulers Intercepted 16 | . 2 . 4 . . . . 1 . 1 . . . 1 1 . . 1 . . . . . . . 2 . . . . 2 . . 1 . . Recyclers Shooed 9 | . . . 2 . . . 2 1 . . . . . . 1 . . . . . . . . . . 2 . . . . . . . . 1 . Parts Field Recycled . | . . . . . . . . . . . . . . . . . . . . . . . . . . . . . . . . . . . . . Retrieved Matter . | . . . . . . . . . . . . . . . . . . . . . . . . . . . . . . . . . . . . . Parts Self-Destructed 136 | . . . . . . . . . 7 14 . . 5 . . . . . . . . 87 5 . . . 1 14 . 3 . . . . . . Prevented 28 | . . . . . . . . . . 9 . . 3 . . . . . . 1 . 12 3 . . . . . . . . . . . . . Kills | -11 -10 -10 -9 -9 -9 -8 -8 -7 -7 -7 -7 -7 -6 -6 -6 -6 -6 -6 -5 -5 -5 -5 -4 -4 -4 -4 -4 -4 -4 -3 -3 -3 -3 -2 -1 -1 ------- Run | Scr Mat Min Mat Min Exi Min Mat Fac Low Low Zio Dee Pro Fac Ext Cet Arc Hub Fac Upp Upp War Pro Fac Was Fac Upp Upp Zhi Pro Res Arm Lab Res Acc Com Combat Hostiles Destroyed 316 | . 11 3 37 8 . 14 23 3 4 5 . 9 4 8 15 6 2 18 10 . 1 12 19 2 6 24 . 9 . 8 19 3 . . 5 28 Melee 31 | . . . . . . . . . . . . . . . . . . 4 3 . . . 2 . . 8 . 5 . 2 5 2 . . . . Guns 93 | . 7 3 18 6 . 4 18 2 4 1 . . 1 4 11 3 1 6 . . . . . . . 4 . . . . . . . . . . Cannons 46 | . . . . . . . 1 1 . . . 2 . . . . . 3 1 . 1 2 3 1 . 4 . . . 1 4 1 . . 4 17 AOE 118 | . 4 . 19 2 . 10 4 . . 2 . 7 2 3 . 1 . 5 2 . . 10 13 1 6 8 . 4 . 5 10 . . . . . Classes Destroyed 25 | . 6 3 3 1 . . 2 1 1 . . 1 . . . . . . 2 . . 1 . . 1 . . . . . 2 . . . 1 . Worker 28 | . 1 . 1 . . 1 2 1 . . . . . 3 . . . 4 . . . . . . . 7 . . . . . . . 1 1 6 Builder 5 | . . . . . . . . . . . . . . . . . . . 1 . . . . . . 2 . . . . 1 . . . 1 . Tunneler 4 | . . 1 1 . . . . 1 . . . . . . . . . . . . . . . . . . . . . . . . . 1 . . Hauler 16 | . 2 . 4 . . . . 1 . 1 . . . 1 1 . . 1 . . . . . . . 2 . . . . 2 . . 1 . . Recycler 14 | . . . 1 1 . . 2 . . . . . . . 2 . . . 1 . . . . . . 1 . . . . . . . 1 . 5 Minesweeper 1 | . . . . . . . . . 1 . . . . . . . . . . . . . . . . . . . . . . . . . . . Mechanic 2 | . . . 1 . . . . . . . . . . . . . . . . . . . . . . . . . . . . . . 1 . . Operator 13 | . 1 . 1 . . . 1 . . . . . . . . . 7 1 . . . . . 1 . . . . . . . . . . . 1 Watcher 15 | . 1 . 2 . . . 1 . . . . . . . 1 . . 3 2 . . . . . . 1 . . . . . . . 1 2 1 Swarmer 72 | . 3 . 14 2 . 14 3 . . . . . . 3 . . . . . . . 5 8 . . 4 . 5 . 6 5 . . . . . Cutter 6 | . . . . . . . . . . . . . . . . . . . . . . . . . . . . . . . . . . . 4 2 Grunt 98 | . 8 . 19 3 . . 12 . 3 5 . . 2 3 9 1 . 8 3 . . 3 4 . . 5 . 2 . 1 3 . . . . 4 Brawler 6 | . . . . . . . 2 . . . . . 1 . . . . . . . . . 2 . . . . . . . . 1 . . . . Duelist 9 | . . . . 1 . . . . 1 . . . . 1 . . . . 1 . . . 3 . . . . . . . 1 . . . . 1 Sentry 36 | . . . 4 2 . . 5 1 . . . . . . 5 . 2 3 2 . 1 . 2 . . 2 . 1 . 1 3 . . . . 2 Demolisher 2 | . . 2 . . . . . . . . . . . . . . . . . . . . . . . . . . . . . . . . . . Specialist 4 | . . . . . . . . . . . . . . . . . . . . . . . . . . . . . . . 2 . . . . 2 Hunter 17 | . . . . . . . 1 1 . . . . . . 1 . . 2 . . . . . 2 . 5 . . . . 1 1 . . 1 2 Programmer 36 | . . . . . . . . 1 . . . . 1 1 . . . 4 3 . . 2 . . . 8 . 1 . . 3 1 . . . 11 Heavy 1 | . . . . . . . . . . . . . . . . . . . . . . . . . . . . . . . 1 . . . . . Behemoth 1 | . . . . . . . . . . . . . . . . . . . 1 . . . . . . . . . . . . . . . . . Compactor 6 | . . . . . . . . . . . . . . . . . . . . . . . . . 6 . . . . . . . . . . . Cetus Guard 5 | . . . . . . . . . . . . . . . . 5 . . . . . . . . . . . . . . . . . . . . M Guard 2 | . . . . . . . . . . . . . . . . . . . . . . . . . . . . . . . . . . . . 2 Enhanced Grunt 4 | . . . . . . . . . . . . . . . . . 4 . . . . . . . . . . . . . . . . . . . Lightning 3 | . . . . . . . . . . . . . . . . . . 3 . . . . . . . . . . . . . . . . . . Combat Programmer 2 | . . . . . . . . . . . . . . . . . . . . . . . . . . . . . . . . . . . . 2 Striker 2 | . . . . . . . . . . . . . . . . . . . . . . 2 . . . . . . . . . . . . . . Z-Technician 2 | . . . . . . . . . . . . 2 . . . . . . . . . . . . . . . . . . . . . . . . Z-Light 8 | . . . . . . . . . . . . 8 . . . . . . . . . . . . . . . . . . . . . . . . Packrat 2 | . . . . . . . . . 2 . . . . . . . . . . . . . . . . . . . . . . . . . . . Assembled 1 | . . 1 . . . . . . . . . . . . . . . . . . . . . . . . . . . . . . . . . . Surgeon 2 | . . . . . . . . . . . . . . . . . . . . . . . . . 2 . . . . . . . . . . . Wasp 5 | . . . . . . . . . . . . . . . . . . . . . . . . . 5 . . . . . . . . . . . Thug 8 | . . . . . . . . . . . . . . . . . 1 . . . . . . . 7 . . . . . . . . . . . Savage 3 | . . . . . . . . . . . . . . . 2 1 . . . . . . . . . . . . . . . . . . . . Butcher 2 | . . . . . . . . . . . . . . . . . . . . . . . . . 2 . . . . . . . . . . . Martyr 2 | . . . . . . . . . . . . . . . . . . . . . . . . . 2 . . . . . . . . . . . Best Kill Streak 10 | . 3 2 7 2 . 4 7 3 4 4 . 6 3 10 2 3 4 4 3 . 1 10 10 2 2 5 . 5 . 4 7 2 . 1 4 6 Combat Bots Only 10 | . 3 2 7 2 . 4 5 2 4 4 . 6 3 7 2 3 2 4 3 . 1 10 10 2 2 4 . 5 . 4 6 2 . . 4 5 Max Kills in Single Turn 5 | . 3 1 3 1 . 4 2 1 1 1 . 2 1 3 1 1 1 3 1 . 1 4 4 1 1 5 . 4 . 3 3 1 . 1 1 1 Gunslinging . | . . . . . . . . . . . . . . . . . . . . . . . . . . . . . . . . . . . . . Exploded 4 | . 3 . 3 1 . 4 1 . . 1 . 2 1 1 . 1 . 1 1 . . 4 4 1 1 3 . 4 . 3 3 . . . . . Melee 1 | . . . . . . . . . . . . . . . . . . 1 1 . . . 1 . . 1 . 1 . 1 1 1 . . . . Uniques/NPCs Destroyed 2 | . . . . . . . . . . . . 1 . . . 1 . . . . . . . . . . . . . . . . . . . . Z-Imprinter (-7/Deep Caves) A7 (-6/Cetus) Combat | -11 -10 -10 -9 -9 -9 -8 -8 -7 -7 -7 -7 -7 -6 -6 -6 -6 -6 -6 -5 -5 -5 -5 -4 -4 -4 -4 -4 -4 -4 -3 -3 -3 -3 -2 -1 -1 -------- Run | Scr Mat Min Mat Min Exi Min Mat Fac Low Low Zio Dee Pro Fac Ext Cet Arc Hub Fac Upp Upp War Pro Fac Was Fac Upp Upp Zhi Pro Res Arm Lab Res Acc Com Damage Taken 19973 | . 278 342 997 333 . 211 1099 152 340 133 . 572 156 240 765 377 73 2415 842 . . 396 228 157 . 1453 . 318 . 353 467 881 . 67 519 5809 Core 2792 | . 32 38 50 42 . 8 93 6 78 19 . 28 . 31 42 41 . 209 37 . . 18 29 . . 137 . 39 . 56 37 78 . 15 36 1593 Absorbed by Shields 2273 | . . . . . . . . . . . . . . . 37 210 . . . . . 243 137 98 . 166 . 197 . 323 413 190 . . . 259 Core Remaining (%) 82 | 100 . 72 . . . 75 83 . . . . . 81 . . . . 62 . . . . 91 . . . . . . 79 . . 85 98 . . Volleys Fired 1200 | . 45 9 80 23 . 12 69 15 17 13 . 23 12 25 65 28 191 160 54 6 4 19 18 2 18 57 . 1 . 24 33 5 . 5 18 149 Largest 3 | . 2 2 3 3 . 3 3 3 3 3 . 1 2 3 3 3 3 3 2 1 1 1 1 1 1 3 . 1 . 1 1 1 . 1 1 1 Hottest 240 | . 85 85 135 69 . 66 115 117 78 78 . 20 53 202 202 240 202 231 98 98 98 100 100 100 . 237 . 49 . 98 100 100 . 100 100 100 Shots Fired 1894 | . 85 18 206 65 . 21 171 45 50 21 . 23 19 45 183 75 222 194 58 7 4 19 17 2 18 92 . 1 . 24 33 5 . 5 18 148 Gun 1120 | . 80 18 194 63 . 17 160 43 50 12 . . 14 38 174 69 93 40 . . . . . . . 55 . . . . . . . . . . Cannon 385 | . . . . . . . 4 2 . . . . . . . 3 . 59 51 7 1 11 12 1 . 31 . . . 12 17 5 . 5 18 146 Launcher 67 | . 5 . 12 2 . 4 7 . . 9 . . 5 7 1 3 . . . . . . . . . 1 . 1 . 6 2 . . . . 2 Special 322 | . . . . . . . . . . . . 23 . . 8 . 129 95 7 . 3 8 5 1 18 5 . . . 6 14 . . . . . Kinetic 575 | . 40 9 159 63 . 17 160 43 50 12 . . 14 8 . . . . . . . . . . . . . . . . . . . . . . Thermal 1073 | . 40 9 35 . . . . . . . . 9 . 30 181 69 222 162 35 7 1 . . . . 78 . . . 12 13 1 . 5 18 146 Explosive 135 | . 5 . 12 2 . 4 7 . . . . 14 . 7 . . . 6 7 . 3 8 5 1 18 5 . 1 . 12 16 . . . . 2 Electromagnetic 87 | . . . . . . . 4 2 . 9 . . 5 . 1 6 . 22 16 . . 10 11 . . 1 . . . . . . . . . . Entropic 19 | . . . . . . . . . . . . . . . . . . . . . . 1 1 1 . 8 . . . . 4 4 . . . . Robot Hit Streak 42 | . 12 8 15 13 . 15 18 16 12 7 . 4 4 21 39 21 20 16 13 . 8 9 21 23 40 8 . . . 4 11 4 . 5 13 42 Robot Miss Streak 5 | . 2 2 3 2 . 3 5 3 2 2 . 2 1 2 2 2 4 3 3 . . 2 . . 1 3 . . . 2 2 . . . . . Penetration Max 1 | . . . . . . . . 1 . . . . . . . . . . . . . 1 . . . 1 . . . . . . . . . . Secondary Targets 13 | . . 1 2 1 . 1 5 . 1 . . . . . . 1 . . . . . . . . . 1 . . . . . . . . . . Max Gunslinging Chain 1 | . . 1 1 1 . 1 1 . 1 . . . . . . 1 . . . . . . . . . 1 . . . . . . . . . . Shots Hit Robots 1483 | . 55 13 137 47 . 13 123 30 39 13 . 12 13 29 151 60 165 145 50 . 3 12 23 3 53 93 1 13 . 10 33 29 . 10 14 91 Core Hits 812 | . 29 6 79 15 . 17 55 11 11 11 . 20 8 21 53 27 73 69 20 . 3 21 32 3 28 59 1 13 . 13 36 7 . 4 7 60 Critical Kills 22 | . . . . . . . 1 1 1 . . . . . 2 2 1 . . . . . . . . . . . . . . . . 1 1 12 Critical Parts Destroyed 11 | . . . 1 . . . 2 . . . . . 1 . 4 1 2 . . . . . . . . . . . . . . . . . . . Critical Strikes 113 | . 3 1 2 . . . 3 1 1 . . 1 1 3 14 10 10 12 6 . . 5 3 1 2 12 . 1 . . 3 4 . 1 1 12 Burn 29 | . 3 1 1 . . . . . . . . . . 3 8 5 3 3 . . . . . . . 2 . . . . . . . . . . Meltdown 14 | . . . . . . . . . . . . . . . . . . . . . . . . . . . . . . . . . . 1 1 12 Destroy 21 | . . . 1 . . . 3 1 1 . . . 1 . 6 5 3 . . . . . . . . . . . . . . . . . . . Corrupt 8 | . . . . . . . . . . . . . . . . . . 1 3 . . 4 . . . . . . . . . . . . . . Sever 18 | . . . . . . . . . . . . 1 . . . . 4 6 . . . 1 1 . 1 2 . . . . 1 1 . . . . Puncture 15 | . . . . . . . . . . . . . . . . . . 2 3 . . . 2 . 1 6 . 1 . . . . . . . . Sunder 8 | . . . . . . . . . . . . . . . . . . . . . . . . 1 . 2 . . . . 2 3 . . . . Melee Attacks 510 | . . . . . . . 5 12 2 . 4 . 12 1 1 . 1 49 31 . . 4 10 1 36 78 5 21 . 16 24 39 33 16 21 88 Impact 45 | . . . . . . . 5 12 2 . 4 . 12 1 1 . . 8 . . . . . . . . . . . . . . . . . . Slashing 195 | . . . . . . . . . . . . . . . . . . . . . . . . . . . . . . . . 37 33 16 21 88 Piercing 269 | . . . . . . . . . . . . . . . . . . 41 31 . . 4 10 1 36 78 5 21 . 16 24 2 . . . . Sneak Attacks 67 | . . . . . . . 1 1 1 . . . . . . . 1 . 1 . . . 1 1 36 10 . . . . 2 . . 7 3 2 Combat Hostiles 2 | . . . . . . . . . . . . . . . . . . . . . . . . . . 1 . . . . 1 . . . . . Follow-up Attacks 43 | . . . . . . . . . . . . . . . . . . . . . . . . . . 4 . 4 . 2 2 5 . 2 2 22 Damage Inflicted 69676 | . 905 166 3067 874 . 701 2413 707 744 532 . 1898 498 1286 3026 1429 2282 4307 2564 . 230 3357 3462 464 8799 6011 99 984 . 1673 3771 1503 . 1255 1280 9389 Guns 14339 | . 583 166 1819 664 . 157 1693 509 686 144 . . 261 517 2906 1171 1504 626 . . . . . . . 933 . . . . . . . . . . Cannons 10324 | . . . . . . . 88 62 . . . . . . . 91 . 1228 1104 . . 461 220 93 . 664 . . . . 342 338 . 130 683 4820 Explosions 23622 | . 322 . 1248 210 . 544 513 . . 388 . 1571 237 769 53 167 . 885 592 . 108 2577 2790 224 5030 1654 . 450 . 1299 1952 . . . . 39 Melee 16852 | . . . . . . . 119 136 58 . . . . . . . . 700 674 . . . 205 88 3332 2496 99 534 . 181 813 1165 . 1125 597 4530 Ramming 46 | . . . . . . . . . . . . . . . . . . 46 . . . . . . . . . . . . . . . . . . Kinetic 5970 | . 210 39 1492 664 . 157 1693 509 686 144 . . 261 115 . . . . . . . . . . . . . . . . . . . . . . Thermal 17676 | . 373 127 327 . . . 60 . . . . 42 14 1022 2973 1171 2282 1881 514 . . . . . . 1257 . . . . . . . 130 683 4820 Explosive 21546 | . 322 . 1248 210 . 544 453 . . . . 1571 . 149 . . . 553 592 . 108 2577 2790 224 5030 1435 . 450 . 1299 1952 . . . . 39 Electromagnetic 3198 | . . . . . . . 88 62 . 388 . . 223 . 53 258 . 913 590 . . 461 126 . . 36 . . . . . . . . . . Impact 313 | . . . . . . . 119 136 58 . . . . . . . . . . . . . . . . . . . . . . . . . . . Slashing 10415 | . . . . . . . . . . . . 285 . . . . . 214 194 . 122 319 247 59 437 264 . . . 193 664 1165 . 1125 597 4530 Piercing 9122 | . . . . . . . . . . . . . . . . . . 700 674 . . . 205 88 3332 2496 99 534 . 181 813 . . . . . Entropic 1390 | . . . . . . . . . . . . . . . . . . . . . . . 94 93 . 523 . . . . 342 338 . . . . Highest Corruption 12 | . 1 1 . . . . . . . . . . 1 4 4 4 4 6 6 6 6 6 12 . . 2 1 . . . 7 9 9 . 5 9 Average Corruption 4 | . 1 1 . . . . . . . . . . 1 3 4 4 3 2 5 6 6 3 6 . . 1 1 . . . 5 7 9 . 5 5 Corruption Purged 11 | . . . . . . . . . . . . . . . . . 4 5 . . . . . . . 1 1 . . . . . . . . . Effects 245 | . 1 2 . . . . . . . . . . . 12 28 14 12 13 8 14 7 2 23 . . 13 1 . . . 5 16 14 . 1 59 Message Errors 71 | . 1 2 . . . . . . . . . . . 3 9 3 1 7 3 4 2 . 7 . . 4 1 . . . 2 3 4 . 1 14 Matter Fused 57 | . . . . . . . . . . . . . . 4 7 4 4 1 . 1 3 . 6 . . . . . . . 2 3 3 . . 19 Heat Flow Errors 27 | . . . . . . . . . . . . . . 1 3 1 . 1 3 1 1 . 1 . . 2 . . . . . 4 1 . . 8 Energy Discharges 37 | . . . . . . . . . . . . . . 2 3 4 3 1 1 4 . 2 5 . . 4 . . . . . 1 3 . . 4 Parts Rejected 2 | . . . . . . . . . . . . . . . . . . 1 . . . . . . . . . . . . . . . . . 1 Data Loss (minor) 36 | . . . . . . . . . . . . . . 2 5 1 3 2 . 2 . . 3 . . 3 . . . . 1 4 1 . . 9 Data Loss (major) 9 | . . . . . . . . . . . . . . . . . . . . 1 1 . . . . . . . . . . 1 2 . . 4 Misfires 2 | . . . . . . . . . . . . . . . . . . . 1 1 . . . . . . . . . . . . . . . . Weapon Failures 4 | . . . . . . . . . . . . . . . 1 1 1 . . . . . 1 . . . . . . . . . . . . . Overload Shots 1 | . . . . . . . . . . . . . . . . 1 . . . . . . . . . . . . . . . . . . . . Overflow Damage 2837 | . 56 . 56 11 . 9 89 . . 3 . 105 . 98 . . . 150 45 . . 167 212 16 344 287 . . . 58 4 29 . 474 218 406 Projectiles 495 | . . . . . . . . . . . . 29 . . . . . 117 18 . . 8 36 14 . 107 . . . . 3 . . . . 163 Explosions 779 | . 56 . 56 11 . 9 . . . 3 . 76 . 98 . . . 22 . . . 159 176 2 67 . . . . 43 1 . . . . . Melee 1563 | . . . . . . . 89 . . . . . . . . . . 11 27 . . . . . 277 180 . . . 15 . 29 . 474 218 243 Knockbacks 1 | . . . . . . . 1 . . . . . . . . . . . . . . . . . . . . . . . . . . . . . Impact 1 | . . . . . . . 1 . . . . . . . . . . . . . . . . . . . . . . . . . . . . . Kinetic . | . . . . . . . . . . . . . . . . . . . . . . . . . . . . . . . . . . . . . Secondary . | . . . . . . . . . . . . . . . . . . . . . . . . . . . . . . . . . . . . . Self-Inflicted Damage 551 | . . . 111 . . . 43 . . 11 . . . . . . . 271 . . . . . . . 36 . . . 23 56 . . . . . Shots 14 | . . . 3 . . . 3 . . 1 . . . . . . . 3 . . . . . . . 1 . . . 1 2 . . . . . Rammed . | . . . . . . . . . . . . . . . . . . . . . . . . . . . . . . . . . . . . . Targets Rammed 3 | . . . . . . . . . . . . . . . . . . 3 . . . . . . . . . . . . . . . . . . Kicked 3 | . . . . . . . . . . . . . . . . . . 3 . . . . . . . . . . . . . . . . . . Crushed . | . . . . . . . . . . . . . . . . . . . . . . . . . . . . . . . . . . . . . Highest Temperature 377 | . 149 184 336 98 . 22 196 39 112 88 . 5 16 153 330 240 120 248 264 63 229 325 230 82 52 377 . . 46 136 110 259 90 11 2 348 Average Temperature 60 | . 52 81 61 26 . 3 53 16 44 34 . 5 6 59 103 75 45 72 71 25 104 67 17 23 17 105 . . 26 64 35 72 11 11 2 87 Received Heat Transfer 2550 | . 132 . 282 105 . . 441 . 135 63 . 162 18 72 236 87 . 291 69 . . 4 44 . . 166 . 45 . 30 34 12 . . 9 113 Effects 9 | . . . . . . . . . . . . . . . 2 . . . . . . . 3 . . 3 . . . . . 1 . . . . Interference 9 | . . . . . . . . . . . . . . . 2 . . . . . . . 3 . . 3 . . . . . 1 . . . . Siege Activations . | . . . . . . . . . . . . . . . . . . . . . . . . . . . . . . . . . . . . . Robots Corrupted 9 | . . . . . . . . . . 2 . . 1 . . . . 1 4 . . . 1 . . . . . . . . . . . . . Combat Hostiles 8 | . . . . . . . . . . 2 . . 1 . . . . . 4 . . . 1 . . . . . . . . . . . . . Parts Fried 15 | . . . . . . . . 1 . 1 . . . . . 1 . 3 7 . . 1 1 . . . . . . . . . . . . . Impact Corruptions 3 | . . . . . . . 3 . . . . . . . . . . . . . . . . . . . . . . . . . . . . . Robots Melted 22 | . . . . . . . . . . . . . . 1 4 2 1 . . . . . . . . . . . . . . . . 1 1 12 Combat Hostiles 20 | . . . . . . . . . . . . . . 1 4 2 1 . . . . . . . . . . . . . . . . . 1 11 Parts Melted 81 | . 2 . 2 1 . . . . 1 . . . . 3 21 . 9 8 . . . . . . . 6 . . . . . . . 1 . 27 Heat Transferred 30438 | . 1139 370 962 . . . 100 . . . . 148 50 1660 6272 2161 6660 4341 481 . . . . . . 1802 . . . . . . . 111 555 3626 Parts Sabotaged . | . . . . . . . . . . . . . . . . . . . . . . . . . . . . . . . . . . . . . Parts Stolen 1 | . . . . . . . . . 1 . . . . . . . . . . . . . . . . . . . . . . . . . . . Parts Stripped . | . . . . . . . . . . . . . . . . . . . . . . . . . . . . . . . . . . . . . Power Chain Reactions 4 | . . . . . . . 1 . . 1 . . 1 . . . . 1 . . . . . . . . . . . . . . . . . . Missiles Intercepted 3 | . . . . . . . . . . . . . . . . . . . . . . . . . . . . . . . . . . . . 3 Alert | -11 -10 -10 -9 -9 -9 -8 -8 -7 -7 -7 -7 -7 -6 -6 -6 -6 -6 -6 -5 -5 -5 -5 -4 -4 -4 -4 -4 -4 -4 -3 -3 -3 -3 -2 -1 -1 ------- Run | Scr Mat Min Mat Min Exi Min Mat Fac Low Low Zio Dee Pro Fac Ext Cet Arc Hub Fac Upp Upp War Pro Fac Was Fac Upp Upp Zhi Pro Res Arm Lab Res Acc Com Peak Influence 885 | . 302 79 605 467 . 258 480 188 . . . . . 278 561 877 455 647 560 . . . . 156 214 373 . . . . 615 362 . 87 238 885 Initial 322 | . . 59 . 235 . . 56 49 . . . . . 63 89 313 270 25 316 . . . . 37 54 9 . . . . . 322 . . 23 59 Average 243 | . 155 48 452 306 . 78 235 53 . . . . . 70 186 599 296 222 446 . . . . 104 120 136 . . . . 194 287 . 44 104 470 Maximum Alert Level 3 | . 1 . 2 2 . 1 2 . . . . . . 1 2 3 2 2 2 . . . . . 1 1 . . . . 2 1 . . 1 3 Low Security (%) 48 | 100 74 100 7 . . 93 39 100 . . . . . 96 71 . 36 42 . . . . . 100 59 68 . . . . 60 22 . 100 82 13 Level 1 29 | . 25 . 20 78 . 6 37 . . . . . . 3 17 18 34 47 36 . . . . . 40 31 . . . . 12 77 . . 17 33 Level 2 18 | . . . 72 21 . . 22 . . . . . . . 10 64 29 10 63 . . . . . . . . . . . 26 . . . . 20 Level 3 3 | . . . . . . . . . . . . . . . . 17 . . . . . . . . . . . . . . . . . . . 31 Level 4 . | . . . . . . . . . . . . . . . . . . . . . . . . . . . . . . . . . . . . . Level 5 . | . . . . . . . . . . . . . . . . . . . . . . . . . . . . . . . . . . . . . High Security . | . . . . . . . . . . . . . . . . . . . . . . . . . . . . . . . . . . . . . Max Security . | . . . . . . . . . . . . . . . . . . . . . . . . . . . . . . . . . . . . . Squads Dispatched 74 | . 2 . 7 . . . 5 1 . . . . . 1 4 . . 13 4 . . . . 2 . 9 . . . . 6 4 . 1 4 11 Investigation 17 | . 2 . 2 . . . 2 . . . . . . 1 3 . . . 2 . . . . . . 1 . . . . . 2 . 1 1 . Extermination 18 | . . . . . . . . 1 . . . . . . . . . 4 1 . . . . . . 4 . . . . 1 1 . . . 6 Reinforcement 29 | . . . 4 . . . 3 . . . . . . . 1 . . 5 1 . . . . 2 . 4 . . . . 1 1 . . 2 5 Assault 3 | . . . 1 . . . . . . . . . . . . . . 1 . . . . . . . . . . . . 1 . . . . . Garrison 7 | . . . . . . . . . . . . . . . . . . 3 . . . . . . . . . . . . 3 . . . 1 . Intercept . | . . . . . . . . . . . . . . . . . . . . . . . . . . . . . . . . . . . . . Construction Impeded 1 | . . . 1 . . . . . . . . . . . . . . . . . . . . . . . . . . . . . . . . . Haulers Reinforced 2 | . . . . . . . . . . . . . . . . . . . 1 . . . . . . 1 . . . . . . . . . . Active Scanning Responses . | . . . . . . . . . . . . . . . . . . . . . . . . . . . . . . . . . . . . . Cargo Convoy Interrupts 1 | . . . . . . . . . . . . . . 1 . . . . . . . . . . . . . . . . . . . . . . Stealth | -11 -10 -10 -9 -9 -9 -8 -8 -7 -7 -7 -7 -7 -6 -6 -6 -6 -6 -6 -5 -5 -5 -5 -4 -4 -4 -4 -4 -4 -4 -3 -3 -3 -3 -2 -1 -1 --------- Run | Scr Mat Min Mat Min Exi Min Mat Fac Low Low Zio Dee Pro Fac Ext Cet Arc Hub Fac Upp Upp War Pro Fac Was Fac Upp Upp Zhi Pro Res Arm Lab Res Acc Com Distress Signals 16 | . . . 2 . . . 1 . . . . . . 1 . 2 . 1 . . . 1 . . . . . . . . 1 . . 4 2 1 Communications Jammed 131 | . . . . . . . . . . . . . . 4 3 65 . 5 14 . . . . . . 3 . . . . 19 . . 12 . 6 Distress Signals 128 | . . . . . . . . . . . . . . 4 3 65 . 5 14 . . . . . . 3 . . . . 16 . . 12 . 6 Times Spotted 507 | . 17 3 47 17 . 15 28 4 6 5 . 9 4 8 36 18 50 52 18 . 1 24 13 2 6 26 . 6 . 6 21 11 . 6 10 38 Peak Tracking Total 12 | . 3 1 6 4 . 4 8 1 4 5 . 4 3 4 4 5 2 10 3 . 1 12 11 3 2 4 . 2 . 3 6 5 . 2 5 6 Tactical Retreats 35 | . 1 . 1 1 . 1 1 . . 1 . . . . 2 . . 7 1 . . 2 2 . . . . . . 1 1 2 . 1 2 8 Traps | -11 -10 -10 -9 -9 -9 -8 -8 -7 -7 -7 -7 -7 -6 -6 -6 -6 -6 -6 -5 -5 -5 -5 -4 -4 -4 -4 -4 -4 -4 -3 -3 -3 -3 -2 -1 -1 ------- Run | Scr Mat Min Mat Min Exi Min Mat Fac Low Low Zio Dee Pro Fac Ext Cet Arc Hub Fac Upp Upp War Pro Fac Was Fac Upp Upp Zhi Pro Res Arm Lab Res Acc Com Traps Triggered 16 | . . . 1 . . . 1 . . . . . . 4 1 . . 2 . . . . . 1 . 4 . . . . . . . . 2 . Indirectly 4 | . . . . . . . . . . . . . . . . . . . . . . . . . . 4 . . . . . . . . . . Trap Hack Attempts . | . . . . . . . . . . . . . . . . . . . . . . . . . . . . . . . . . . . . . Triggered . | . . . . . . . . . . . . . . . . . . . . . . . . . . . . . . . . . . . . . Disarmed . | . . . . . . . . . . . . . . . . . . . . . . . . . . . . . . . . . . . . . Reprogrammed . | . . . . . . . . . . . . . . . . . . . . . . . . . . . . . . . . . . . . . Reused 2 | . . . . . . . . . 2 . . . . . . . . . . . . . . . . . . . . . . . . . . . Traps Extracted . | . . . . . . . . . . . . . . . . . . . . . . . . . . . . . . . . . . . . . Installed 2 | . . . . . . . . . 2 . . . . . . . . . . . . . . . . . . . . . . . . . . . Triggered 15 | . . . . . . . . . 2 . . . . 1 . . . . . 1 . 10 . . . . 1 . . . . . . . . . Exploded 1 | . . . . . 1 . . . . . . . . . . . . . . . . . . . . . . . . . . . . . . . Machines | -11 -10 -10 -9 -9 -9 -8 -8 -7 -7 -7 -7 -7 -6 -6 -6 -6 -6 -6 -5 -5 -5 -5 -4 -4 -4 -4 -4 -4 -4 -3 -3 -3 -3 -2 -1 -1 ---------- Run | Scr Mat Min Mat Min Exi Min Mat Fac Low Low Zio Dee Pro Fac Ext Cet Arc Hub Fac Upp Upp War Pro Fac Was Fac Upp Upp Zhi Pro Res Arm Lab Res Acc Com Machines Disabled 67 | . 2 . 4 1 . . 6 . . . 1 1 . 5 3 1 2 19 3 . . 1 2 1 . 9 . . . . . . 4 . 1 1 Max in Single Turn 12 | . 1 . 2 . . . 1 . . . 1 1 . 5 1 1 1 12 2 . . 1 1 1 . 4 . . . . . . 1 . 1 1 Garrison Access 6 | . . . . . . . . . . . . . . 1 . . . . 1 . . . . . . 1 . . . . . . . 2 1 . Network Hub 2 | . . . . . . . . . . . . . . . . . . 2 . . . . . . . . . . . . . . . . . . Energy Cycler 1 | . . . . . . . . . . . . . . . . . . . . . . . . . . . . . . . . 1 . . . . Machines Sabotaged . | . . . . . . . . . . . . . . . . . . . . . . . . . . . . . . . . . . . . . Garrisons Compromised 1 | . . . . . . . . . . . . . . 1 . . . . . . . . . . . . . . . . . . . . . . Overloaded Fab Kills . | . . . . . . . . . . . . . . . . . . . . . . . . . . . . . . . . . . . . . Hacking | -11 -10 -10 -9 -9 -9 -8 -8 -7 -7 -7 -7 -7 -6 -6 -6 -6 -6 -6 -5 -5 -5 -5 -4 -4 -4 -4 -4 -4 -4 -3 -3 -3 -3 -2 -1 -1 --------- Run | Scr Mat Min Mat Min Exi Min Mat Fac Low Low Zio Dee Pro Fac Ext Cet Arc Hub Fac Upp Upp War Pro Fac Was Fac Upp Upp Zhi Pro Res Arm Lab Res Acc Com Machines Accessed 105 | . 9 1 7 . 2 . 5 4 1 . . . . 11 11 . . 6 5 . 1 2 . 1 . 9 . 1 4 . 2 3 . 5 7 8 Terminals 55 | . 7 1 3 . . . 4 2 . . . . . 5 11 . . 5 1 . 1 . . . . 2 . 1 . . 1 1 . 1 4 5 Fabricators 9 | . . . . . . . . . . . . . . 2 . . . . 1 . . . . 1 . 1 . . . . . 2 . 1 1 . Repair Stations 8 | . . . 1 . . . . . . . . . . 1 . . . . 1 . . . . . . 2 . . . . 1 . . . . 2 Recycling Units 10 | . 2 . 2 . . . . 2 . . . . . 1 . . . . . . . . . . . 1 . . . . . . . . 1 1 Scanalyzers 5 | . . . 1 . . . 1 . . . . . . . . . . . 1 . . . . . . 2 . . . . . . . . . . Garrison Access 9 | . . . . . . . . . . . . . . 2 . . . 1 1 . . . . . . 1 . . . . . . . 3 1 . Total Hacks 332 | . 27 1 23 . 2 . 20 11 1 . . . . 21 19 . . 9 20 . 1 6 . 3 . 62 . 2 17 . 6 10 . 10 19 42 Successful 168 | . 14 . 13 . 2 . 16 5 1 . . . . 8 8 . . . 9 . 1 6 . 1 . 30 . 2 17 . 1 3 . 4 9 18 Failed 163 | . 12 1 10 . . . 4 6 . . . . . 13 11 . . 9 11 . . . . 2 . 32 . . . . 5 7 . 6 10 24 Catastrophic 35 | . 1 1 1 . . . 2 . . . . . . 6 3 . . 4 1 . . . . 1 . 2 . . . . 3 1 . 2 . 7 Database Lockouts 1 | . 1 . . . . . . . . . . . . . . . . . . . . . . . . . . . . . . . . . . . Manual 70 | . 11 1 7 . 1 . 4 3 . . 1 . . 10 6 1 . 5 1 . . . . 3 . 2 . . . . 3 . . . . 11 Terminals 165 | . 22 1 11 . . . 15 5 . . . . . 10 19 . . 8 7 . 1 . . . . 21 . 2 . . 5 2 . 3 11 22 Fabricators 24 | . . . . . . . . . . . . . . 2 . . . . 3 . . . . 3 . 3 . . . . . 8 . 2 3 . Repair Stations 40 | . . . 2 . . . . . . . . . . 2 . . . . 4 . . . . . . 18 . . . . 1 . . . . 13 Recycling Units 30 | . 5 . 3 . . . . 6 . . . . . 2 . . . . . . . . . . . 3 . . . . . . . . 4 7 Scanalyzers 30 | . . . 7 . . . 5 . . . . . . . . . . . 3 . . . . . . 15 . . . . . . . . . . Garrison Access 17 | . . . . . . . . . . . . . . 5 . . . 1 3 . . . . . . 2 . . . . . . . 5 1 . Terminal Hacks 84 | . 12 . 3 . 2 . 11 1 1 . . . . 3 6 . . . 2 . 1 6 . . . 9 . 2 17 . . . . 1 4 3 Record 15 | . . . . . 1 . . . 1 . . . . . . . . . . . 1 5 . . . . . 2 5 . . . . . . . Part Schematic 5 | . 1 . . . . . . . . . . . . . . . . . . . . . . . . . . . 4 . . . . . . . Robot Analysis 7 | . 2 . 1 . . . . . . . . . . . . . . . . . . . . . . . . . 4 . . . . . . . Prototype ID Bank 11 | . 3 . . . . . 2 . . . . . . 1 . . . . 1 . . . . . . . . . 4 . . . . . . . Open Door 11 | . . . . . . . . . . . . . . . 6 . . . . . . 1 . . . . . . . . . . . . 3 1 Open DSF 1 | . . . . . . . . . . . . . . 1 . . . . . . . . . . . . . . . . . . . . . . Branch Access Points 7 | . . . . . . . 1 1 . . . . . 1 . . . . 1 . . . . . . 1 . . . . . . . 1 1 . Terminal Index 3 | . 2 . 1 . . . . . . . . . . . . . . . . . . . . . . . . . . . . . . . . . Fabricator Index 1 | . . . . . . . . . . . . . . . . . . . . . . . . . . 1 . . . . . . . . . . Scanalyzer Index 1 | . . . . . . . 1 . . . . . . . . . . . . . . . . . . . . . . . . . . . . . Alert Level 3 | . . . . . . . 1 . . . . . . . . . . . . . . . . . . 2 . . . . . . . . . . Unreport Threat 6 | . . . . . . . 3 . . . . . . . . . . . . . . . . . . 3 . . . . . . . . . . Locate Traps 6 | . 3 . 1 . . . . . . . . . . . . . . . . . . . . . . 1 . . . . . . . . . 1 Hauler Manifests 1 | . 1 . . . . . . . . . . . . . . . . . . . . . . . . . . . . . . . . . . . Zone Layout 4 | . . . . . . . 3 . . . . . . . . . . . . . . . . . . 1 . . . . . . . . . . EX-Prototype ID Bank 1 | . . . . . 1 . . . . . . . . . . . . . . . . . . . . . . . . . . . . . . . Disengage Seal 1 | . . . . . . . . . . . . . . . . . . . . . . . . . . . . . . . . . . . . 1 Fabricator Hacks 13 | . . . . . . . . . . . . . . . . . . . 3 . . . . . . 3 . . . . . 3 . 1 3 . Network Status 4 | . . . . . . . . . . . . . . . . . . . 1 . . . . . . 1 . . . . . 1 . . 1 . Load Schematic 6 | . . . . . . . . . . . . . . . . . . . 1 . . . . . . 1 . . . . . 2 . 1 1 . Build 3 | . . . . . . . . . . . . . . . . . . . 1 . . . . . . 1 . . . . . . . . 1 . Repair Station Hacks 21 | . . . 2 . . . . . . . . . . 2 . . . . 2 . . . . . . 8 . . . . . . . . . 7 Scan Component 12 | . . . 1 . . . . . . . . . . 1 . . . . 1 . . . . . . 5 . . . . . . . . . 4 Repair 9 | . . . 1 . . . . . . . . . . 1 . . . . 1 . . . . . . 3 . . . . . . . . . 3 Recycling Unit Hacks 8 | . 1 . . . . . . 3 . . . . . . . . . . . . . . . . . 1 . . . . . . . . 1 2 Report Inventory 6 | . 1 . . . . . . 2 . . . . . . . . . . . . . . . . . 1 . . . . . . . . 1 1 Retrieve Components 2 | . . . . . . . . 1 . . . . . . . . . . . . . . . . . . . . . . . . . . . 1 Scanalyzer 20 | . . . 6 . . . 5 . . . . . . . . . . . 1 . . . . . . 8 . . . . . . . . . . Insert Component 12 | . . . 3 . . . 3 . . . . . . . . . . . 1 . . . . . . 5 . . . . . . . . . . Analyze 8 | . . . 3 . . . 2 . . . . . . . . . . . . . . . . . . 3 . . . . . . . . . . Garrison Access Hacks 6 | . . . . . . . . . . . . . . 1 . . . . 1 . . . . . . 1 . . . . . . . 2 1 . Seal Access 6 | . . . . . . . . . . . . . . 1 . . . . 1 . . . . . . 1 . . . . . . . 2 1 . Unauthorized Hacks 16 | . 1 . 2 . . . . 1 . . . . . 2 2 . . . . . . . . 1 . . . . . . 1 . . . . 6 Terminals 8 | . . . . . . . . . . . . . . 1 2 . . . . . . . . . . . . . . . 1 . . . . 4 Track 1 | . . . . . . . . . . . . . . . . . . . . . . . . . . . . . . . . . . . . 1 Assimilate 2 | . . . . . . . . . . . . . . . 1 . . . . . . . . . . . . . . . 1 . . . . . Botnet 4 | . . . . . . . . . . . . . . 1 1 . . . . . . . . . . . . . . . . . . . . 2 Operators 1 | . . . . . . . . . . . . . . . . . . . . . . . . . . . . . . . . . . . . 1 Fabricators 1 | . . . . . . . . . . . . . . . . . . . . . . . . 1 . . . . . . . . . . . . Haulers 1 | . . . . . . . . . . . . . . . . . . . . . . . . 1 . . . . . . . . . . . . Repair Stations . | . . . . . . . . . . . . . . . . . . . . . . . . . . . . . . . . . . . . . Recycling Units 7 | . 1 . 2 . . . . 1 . . . . . 1 . . . . . . . . . . . . . . . . . . . . . 2 Reject 2 | . . . . . . . . . . . . . . 1 . . . . . . . . . . . . . . . . . . . . . 1 Recyclers 2 | . . . . . . . . 1 . . . . . . . . . . . . . . . . . . . . . . . . . . . 1 Tunnel 3 | . 1 . 2 . . . . . . . . . . . . . . . . . . . . . . . . . . . . . . . . . Scanalyzers . | . . . . . . . . . . . . . . . . . . . . . . . . . . . . . . . . . . . . . Garrison Access . | . . . . . . . . . . . . . . . . . . . . . . . . . . . . . . . . . . . . . Data Cores Recovered . | . . . . . . . . . . . . . . . . . . . . . . . . . . . . . . . . . . . . . Used . | . . . . . . . . . . . . . . . . . . . . . . . . . . . . . . . . . . . . . Hacking Detections 73 | . 8 1 4 . . . 4 3 . . . . . 10 7 1 . 6 4 . . . . 1 . 8 . . . . 2 3 . 3 3 5 Full Trace Events 9 | . 1 . . . . . . . . . . . . . 1 . . . 2 . . . . . . 1 . . . . . 2 . 1 1 . Feedback Events 1 | . 1 . . . . . . . . . . . . . . . . . . . . . . . . . . . . . . . . . . . Corruption 1 | . 1 . . . . . . . . . . . . . . . . . . . . . . . . . . . . . . . . . . . Feedback Blocked . | . . . . . . . . . . . . . . . . . . . . . . . . . . . . . . . . . . . . . Robot Schematics Acquired 3 | . . . . . . . . . . . 3 . . . . . . . . . . . . . . . . . . . . . . . . . Robots Built . | . . . . . . . . . . . . . . . . . . . . . . . . . . . . . . . . . . . . . Authchips . | . . . . . . . . . . . . . . . . . . . . . . . . . . . . . . . . . . . . . Time . | . . . . . . . . . . . . . . . . . . . . . . . . . . . . . . . . . . . . . Total Robot Build Rating . | . . . . . . . . . . . . . . . . . . . . . . . . . . . . . . . . . . . . . Part Schematics Acquired 25 | . 1 . 3 . . . 2 . . . 12 . . . . . . . . . . . . . . 3 . . 4 . . . . . . . Parts Built 5 | . . . . . . . . . . . . . . . . . . . 1 . . . . . . 2 . . . . . . . . 2 . Authchips . | . . . . . . . . . . . . . . . . . . . . . . . . . . . . . . . . . . . . . Time 177 | . . . . . . . . . . . . . . . . . . . 51 . . . . . . 84 . . . . . . . . 42 . Total Part Build Rating 25 | . . . . . . . . . . . . . . . . . . . 1 . . . . . . 8 . . . . . . . . 16 . Parts Repaired 9 | . . . 1 . . . . . . . . . . 1 . . . . 1 . . . . . . 3 . . . . . . . . . 3 Time 495 | . . . 136 . . . . . . . . . . 56 . . . . 54 . . . . . . 165 . . . . . . . . . 84 Parts Recycled . | . . . . . . . . . . . . . . . . . . . . . . . . . . . . . . . . . . . . . Recycled Matter . | . . . . . . . . . . . . . . . . . . . . . . . . . . . . . . . . . . . . . Retrieved Matter . | . . . . . . . . . . . . . . . . . . . . . . . . . . . . . . . . . . . . . Retrieved Components 13 | . . . . . . . . 3 . . . . . . . . . . . . . . . . . . . . . . . . . . . 10 Parts Scanalyzed 9 | . . . 3 . . . 2 . . . . . . . . . . . 1 . . . . . . 3 . . . . . . . . . . Part Schematics Acquired 8 | . . . 3 . . . 2 . . . . . . . . . . . . . . . . . . 3 . . . . . . . . . . Parts Damaged 2 | . . . 1 . . . . . . . . . . . . . . . . . . . . . . 1 . . . . . . . . . . Bothacking | -11 -10 -10 -9 -9 -9 -8 -8 -7 -7 -7 -7 -7 -6 -6 -6 -6 -6 -6 -5 -5 -5 -5 -4 -4 -4 -4 -4 -4 -4 -3 -3 -3 -3 -2 -1 -1 ------------ Run | Scr Mat Min Mat Min Exi Min Mat Fac Low Low Zio Dee Pro Fac Ext Cet Arc Hub Fac Upp Upp War Pro Fac Was Fac Upp Upp Zhi Pro Res Arm Lab Res Acc Com Used RIF Installer . | . . . . . . . . . . . . . . . . . . . . . . . . . . . . . . . . . . . . . Robots Hacked 1 | . . . . . . . . . . . . . . . . . 1 . . . . . . . . . . . . . . . . . . . Non-combat 1 | . . . . . . . . . . . . . . . . . 1 . . . . . . . . . . . . . . . . . . . Combat . | . . . . . . . . . . . . . . . . . . . . . . . . . . . . . . . . . . . . . Robot Hacks Applied 1 | . . . . . . . . . . . . . . . . . 1 . . . . . . . . . . . . . . . . . . . check_alert 1 | . . . . . . . . . . . . . . . . . 1 . . . . . . . . . . . . . . . . . . . Relay Couplers Released . | . . . . . . . . . . . . . . . . . . . . . . . . . . . . . . . . . . . . . Fabnet Peak Effective % . | . . . . . . . . . . . . . . . . . . . . . . . . . . . . . . . . . . . . . Robots Rewired 20 | . . . . . . . . . . . . . . . 17 . . . . . . 3 . . . . . . . . . . . . . . Allies Hacked . | . . . . . . . . . . . . . . . . . . . . . . . . . . . . . . . . . . . . . Hacks Repelled . | . . . . . . . . . . . . . . . . . . . . . . . . . . . . . . . . . . . . . Allies | -11 -10 -10 -9 -9 -9 -8 -8 -7 -7 -7 -7 -7 -6 -6 -6 -6 -6 -6 -5 -5 -5 -5 -4 -4 -4 -4 -4 -4 -4 -3 -3 -3 -3 -2 -1 -1 -------- Run | Scr Mat Min Mat Min Exi Min Mat Fac Low Low Zio Dee Pro Fac Ext Cet Arc Hub Fac Upp Upp War Pro Fac Was Fac Upp Upp Zhi Pro Res Arm Lab Res Acc Com Total Allies 63 | . . 2 . 3 . . . . . . . . . . 26 5 . 2 . . . 3 . . 19 . . . . . 1 . . . 2 . Largest Group 19 | . . 2 . 3 . . . . . . . . . . 12 10 8 2 . . . 3 1 1 19 . . . . . 1 . . . 2 . Highest-Rated Group 714 | . . 43 . 40 . . . . . . . . . . 440 692 550 218 . . . 173 65 65 714 . . . . . 26 . . . 92 . Highest-Rated Ally 159 | . . 31 . 16 . . . . . . . . . . 159 143 95 109 . . . 65 65 65 50 . . . . . 26 . . . 46 . Total Orders 20 | . . . . . . . . . . . . . . . 7 . 1 1 . . . 3 4 . . 3 . 1 . . . . . . . . STAY 10 | . . . . . . . . . . . . . . . 5 . 1 1 . . . 1 2 . . . . . . . . . . . . . ROAM 1 | . . . . . . . . . . . . . . . . . . . . . . 1 . . . . . . . . . . . . . . FOLLOW 5 | . . . . . . . . . . . . . . . 2 . . . . . . 1 2 . . . . . . . . . . . . . EXPLORE 3 | . . . . . . . . . . . . . . . . . . . . . . . . . . 2 . 1 . . . . . . . . RETURN 1 | . . . . . . . . . . . . . . . . . . . . . . . . . . 1 . . . . . . . . . . Ally Attacks 354 | . . . . 58 . . . . . . . . . . 155 82 23 17 . . . . . . . . . . . . . . . . 19 . Total Damage 7960 | . . . . 611 . . . . . . . . . . 3305 2509 813 246 . . . . . . . . . . . . . . . . 476 . Kills 47 | . . . . 11 . . . . . . . . . . 18 12 2 1 . . . . . . . . . . . . . . . . 3 . Allies Corrupted . | . . . . . . . . . . . . . . . . . . . . . . . . . . . . . . . . . . . . . Allies Melted . | . . . . . . . . . . . . . . . . . . . . . . . . . . . . . . . . . . . . . Field Lobotomies 3 | . . . . . . . . . . . . . . . 1 . . 2 . . . . . . . . . . . . . . . . . . Intel | -11 -10 -10 -9 -9 -9 -8 -8 -7 -7 -7 -7 -7 -6 -6 -6 -6 -6 -6 -5 -5 -5 -5 -4 -4 -4 -4 -4 -4 -4 -3 -3 -3 -3 -2 -1 -1 ------- Run | Scr Mat Min Mat Min Exi Min Mat Fac Low Low Zio Dee Pro Fac Ext Cet Arc Hub Fac Upp Upp War Pro Fac Was Fac Upp Upp Zhi Pro Res Arm Lab Res Acc Com Robot Analysis Total 7 | . 2 . 1 . . . . . . . . . . . . . . . . . . . . . . . . . 4 . . . . . . . Derelict Logs Recovered 18 | . . 2 . 2 . . . . 1 2 2 . 2 . . . . . . 1 1 . 2 . . . 1 2 . . . . . . . . Drone Launches 4 | . . . . . . . . . . . . . . . . . . . . . . . . . . 3 . 1 . . . . . . . . Drone Recoveries 1 | . . . . . . . . . . . . . . . . . . . . . . . . . . 1 . . . . . . . . . . Decoded 0b10 Intel 20 | . . . . . . . . . . . . . . . . . . . . . . . . . . 20 . . . . . . . . . . Traps 16 | . . . . . . . . . . . . . . . . . . . . . . . . . . 16 . . . . . . . . . . Emergency Access 4 | . . . . . . . . . . . . . . . . . . . . . . . . . . 4 . . . . . . . . . . Exploration | -11 -10 -10 -9 -9 -9 -8 -8 -7 -7 -7 -7 -7 -6 -6 -6 -6 -6 -6 -5 -5 -5 -5 -4 -4 -4 -4 -4 -4 -4 -3 -3 -3 -3 -2 -1 -1 ------------- Run | Scr Mat Min Mat Min Exi Min Mat Fac Low Low Zio Dee Pro Fac Ext Cet Arc Hub Fac Upp Upp War Pro Fac Was Fac Upp Upp Zhi Pro Res Arm Lab Res Acc Com Turns Passed 34626 | 5 1173 853 1920 1542 681 1221 942 584 775 478 911 1070 1164 887 1715 553 1257 2109 1102 563 307 1316 843 176 591 2576 359 892 197 800 762 583 364 649 460 2246 Spaces Moved 20778 | 1 624 432 702 579 271 458 471 293 576 317 728 716 800 498 836 288 399 936 728 478 264 1031 509 125 428 1263 279 545 144 554 375 326 347 766 563 2128 Core 22 | . . . . . . . . . . . . . . . . . . . . . . . . . . . . . . . . . . . . 22 Treads 3200 | 1 624 432 702 579 271 458 129 . . . . . . . . . . . . . . . . . . . . . . . . . . . . 4 Legs 8798 | . . . . . . . . 232 576 317 728 716 800 498 836 288 399 936 728 478 264 1002 . . . . . . . . . . . . . . Wheels 403 | . . . . . . . 342 61 . . . . . . . . . . . . . . . . . . . . . . . . . . . . Hover 8355 | . . . . . . . . . . . . . . . . . . . . . . 29 509 125 428 1263 279 545 144 554 375 326 347 766 563 2102 Flight . | . . . . . . . . . . . . . . . . . . . . . . . . . . . . . . . . . . . . . Fastest Speed 34 | 160 160 160 160 250 250 250 115 120 122 122 122 120 120 120 118 118 118 108 104 104 104 104 134 130 60 124 124 124 124 124 128 115 50 37 37 34 Average Speed 121 | 160 160 160 207 250 250 250 138 122 122 127 122 136 120 120 118 118 118 114 104 104 104 106 138 130 93 128 124 124 124 126 133 121 54 69 60 46 Slowest Speed 330 | 160 160 160 250 250 250 250 330 130 122 192 192 197 120 120 120 120 118 118 108 104 104 218 218 130 130 134 124 124 124 134 208 197 115 116 121 250 Overloaded Moves . | . . . . . . . . . . . . . . . . . . . . . . . . . . . . . . . . . . . . . Propulsion Burnouts . | . . . . . . . . . . . . . . . . . . . . . . . . . . . . . . . . . . . . . Robots Hopped . | . . . . . . . . . . . . . . . . . . . . . . . . . . . . . . . . . . . . . Cave-ins Triggered . | . . . . . . . . . . . . . . . . . . . . . . . . . . . . . . . . . . . . . Teleports 1 | . . . . . . . . . . . . . . . . . . . . . . . . . . . . . . . . 1 . . . . Exploration Rate (%) 55 | 2 95 95 55 99 63 91 50 8 77 50 75 70 82 15 81 67 82 37 20 61 52 84 60 5 95 24 47 93 60 65 10 19 97 19 17 37 Regions Visited 36 Branch Regions 24 Pre-discovered Areas 11 | . 1 1 2 . 1 . . . 1 . 1 . . . . . . . . . . . . . . . . 1 3 . . . . . . . Known Exits Taken 22 | . . . . . . . . 1 1 1 1 1 1 1 . . . 1 1 1 1 1 1 . . 1 1 1 1 1 1 1 1 . 1 . Unknown Exits Taken 12 | 1 1 1 1 1 1 1 1 . . . . . . . 1 1 1 . . . . . . . . . . . . . . . . 1 . . Scrap Searched 26 | . . . . 2 . 1 . . 3 3 3 . 3 . . . . . . 3 . . 2 . . . 2 3 . 1 . . . . . . Spaces Dug 326 | . 11 . . . . . 4 9 1 . 1 . 11 28 1 . . 21 17 6 1 . 3 . . 78 2 . . 13 14 7 . 6 11 81 Terrain Destroyed 1794 | . 52 . 80 12 . 24 29 10 1 6 1 58 16 68 1 . . 441 47 7 8 65 61 27 173 125 2 27 . 170 173 8 . 6 12 84 Melee 93 | . . . . . . . 4 9 1 . 1 . 11 1 1 . . 11 5 . . . 3 . . 12 2 . . 1 2 6 . 4 9 10 Projectile 140 | . . . . . . . 1 1 . . . 2 . . . . . 15 24 7 1 2 2 . . 21 . . . 12 15 2 . 2 3 30 AOE 1559 | . 52 . 80 12 . 24 23 . . 6 . 56 5 67 . . . 414 18 . 7 63 56 27 173 92 . 27 . 157 156 . . . . 44 Terrain Rammed . | . . . . . . . . . . . . . . . . . . . . . . . . . . . . . . . . . . . . . Walls Destroyed . | . . . . . . . . . . . . . . . . . . . . . . . . . . . . . . . . . . . . . Machines Disabled . | . . . . . . . . . . . . . . . . . . . . . . . . . . . . . . . . . . . . . Actions | -11 -10 -10 -9 -9 -9 -8 -8 -7 -7 -7 -7 -7 -6 -6 -6 -6 -6 -6 -5 -5 -5 -5 -4 -4 -4 -4 -4 -4 -4 -3 -3 -3 -3 -2 -1 -1 --------- Run | Scr Mat Min Mat Min Exi Min Mat Fac Low Low Zio Dee Pro Fac Ext Cet Arc Hub Fac Upp Upp War Pro Fac Was Fac Upp Upp Zhi Pro Res Arm Lab Res Acc Com Total 27580 | 6 718 578 1011 631 276 517 630 472 614 371 745 777 966 734 1398 443 845 1595 946 536 291 1229 607 135 536 2006 283 723 162 601 567 467 496 862 635 3171 Wait 3804 | . 21 126 163 19 4 45 32 119 2 22 . 16 137 164 329 97 220 364 93 46 20 66 45 1 19 488 . 153 1 8 104 49 98 48 13 672 Move 20743 | . 623 431 701 578 270 457 470 292 575 316 727 715 799 497 835 287 398 935 727 477 263 1030 508 125 427 1262 278 544 143 553 374 325 346 765 562 2128 Hop . | . . . . . . . . . . . . . . . . . . . . . . . . . . . . . . . . . . . . . Pick Up 241 | . 11 4 20 2 1 1 15 11 6 4 6 5 1 8 2 8 7 11 11 1 . 15 4 2 8 22 . 1 2 . 4 10 9 7 1 21 Fast Attach 140 | . 2 . 8 2 . . 3 . . 3 . 4 . 2 1 1 9 12 3 1 . 6 1 . 3 21 . . 7 . 7 11 2 7 4 20 Attach 123 | 2 . . 3 2 . . 5 5 2 1 . . . 6 . 4 1 9 7 . 1 4 7 3 9 6 . . . . 4 2 3 4 2 31 Detach 40 | . . . 1 . . . . . . . . . . 1 . . . 2 2 . 1 . 1 . 10 4 . . . . 1 . 2 . . 15 Swap 333 | . 11 4 18 2 . 1 14 7 3 6 2 6 4 23 19 8 3 29 12 3 2 4 7 1 1 43 2 8 1 6 16 14 . 5 10 38 Drop 319 | 4 5 4 17 3 1 1 17 11 5 6 6 8 1 7 5 10 15 21 6 2 . 20 6 . 5 39 . 1 8 . 6 19 9 9 3 39 Fire 1200 | . 45 9 80 23 . 12 69 15 17 13 . 23 12 25 65 28 191 160 54 6 4 19 18 2 18 57 . 1 . 24 33 5 . 5 18 149 Melee 423 | . . . . . . . 5 12 2 . 4 . 12 1 1 . 1 49 31 . . 4 10 1 36 64 3 15 . 10 18 32 27 12 16 57 Ram . | . . . . . . . . . . . . . . . . . . . . . . . . . . . . . . . . . . . . . Kick 3 | . . . . . . . . . . . . . . . . . . 3 . . . . . . . . . . . . . . . . . . Crush . | . . . . . . . . . . . . . . . . . . . . . . . . . . . . . . . . . . . . . Escape Stasis 7 | . . . . . . . . . . . . . . . 1 . . . . . . . . . . . . . . . . . . . 6 . Rewire 202 | . . . . . . . . . . . . . . . 140 . . . . . . 61 . . . . . . . . . . . . . 1 Trap 2 | . . . . . . . . . 2 . . . . . . . . . . . . . . . . . . . . . . . . . . . Miscellaneous . | . . . . . . . . . . . . . . . . . . . . . . . . . . . . . . . . . . . . . Route ------- -11/Scrapyard -10/Materials (discovered 4 exits: *Mat x3 / *Min) -10/Mines (discovered 2 exits: *Mat x2) -9/Materials (discovered 2 exits: *Mat / [*Min]) -9/Mines (discovered 4 exits: *Mat x2 / *Exi / *Zio) -9/Exiles -8/Mines (discovered 2 exits: *Mat x2) -8/Materials (discovered 2 exits: *Fac x2) -7/Factory (discovered 3 exits: Sto / *Low x2) -7/Lower Caves -7/Lower Caves -7/Zion (discovered 2 exits: *Dee / [*Pro]) -7/Deep Caves -6/Proximity Caves -6/Factory (discovered 5 exits: *Fac / *Low x2 / *Ext x2) -6/Extension (discovered 2 exits: *Fac / *Cet) -6/Cetus (discovered 2 exits: *Fac / [*Arc]) -6/Archives (discovered 3 exits: *Fac / *Hub x2) -6/Hub_04(d) -5/Factory (discovered 2 exits: *Upp x2) -5/Upper Caves -5/Upper Caves (discovered 2 exits: *Fac / *War) -5/Warlord -4/Proximity Caves -4/Factory -4/Waste -4/Factory (discovered 2 exits: *Upp x2) -4/Upper Caves -4/Upper Caves (discovered 2 exits: *Res / *Zhi) -4/Zhirov -3/Proximity Caves -3/Research (discovered 2 exits: *Arm / [*Qua]) -3/Armory -3/Lab -2/Research (discovered 3 exits: *Acc / Tes x2) -1/Access -1/Command History --------- Turn | Location | Event 6 | -11/Scrapyard | Discovered new exit (range 0) 6 | -11/Scrapyard | Entered Materials 283 | -10/Materials | Discovered new exit (range 3) 311 | -10/Materials | Build established: Mutant 491 | -10/Materials | Discovered new exit (range 4) 733 | -10/Materials | Discovered new exit (range 3) 759 | -10/Materials | Central database locked down 1138 | -10/Materials | Discovered new exit (range 15) 1179 | -10/Materials | Entered Mines 1225 | -10/Mines | Assembled infested the area 1498 | -10/Mines | Discovered new exit (range 8) 1728 | -10/Mines | Discovered new exit (range 14) 1739 | -10/Mines | Found a hidden stash of uninstalled traps 1813 | -10/Mines | Found a damaged Exp. Sensor Array with a note attached 1820 | -10/Mines | Found Prototype Device 1828 | -10/Mines | Identified Exp. Sensor Array 1888 | -10/Mines | Learned Materials interactive machine intel 1893 | -10/Mines | Learned location of Storage (-7) 2032 | -10/Mines | Entered Materials 2032 | -9/Materials | Evolved 2 slots: Utility x1, Weapon x1 2033 | -9/Materials | Loaded intel: 17 interactive machine locations 2199 | -9/Materials | Destroyed 7 combat bots 2354 | -9/Materials | Build established: Skirmisher 2698 | -9/Materials | Build established: Tank 2701 | -9/Materials | Discovered new exit (range 16) 2998 | -9/Materials | Discovered new exit (range 16) 3632 | -9/Materials | First assault squad dispatched 3737 | -9/Materials | Repaired Broken Exp. Sensor Array 3952 | -9/Materials | Entered Mines 3975 | -9/Mines | Assisted by bots powering up and referring to "LRC-V3" 3977 | -9/Mines | Learned Materials terminal intel 4345 | -9/Mines | Deemed a non-threat by the Exiles lab entrance 4635 | -9/Mines | Learned location of 1 exit from Proximity Caves 4636 | -9/Mines | A Derelict revealed a hidden shortcut to a safe place 4690 | -9/Mines | Discovered new exit (range 5) 5011 | -9/Mines | Discovered new exit (range 10) 5029 | -9/Mines | Build established: Gunner 5484 | -9/Mines | Discovered new exit (range 5) 5494 | -9/Mines | Entered Exiles 5552 | -9/Exiles | Met 8R-AWN 5597 | -9/Exiles | Met EX-HEX 5697 | -9/Exiles | Met EX-DEC 5707 | -9/Exiles | Learned location of Zion (-7) 5754 | -9/Exiles | Met EX-BIN 5789 | -9/Exiles | Aligned with FarCom system 5792 | -9/Exiles | Given EX-Vault access code 5852 | -9/Exiles | Opened EX-Vault 5873 | -9/Exiles | Found Field Lobotomy Kit 5923 | -9/Exiles | Warned to stay clear of 0b10 Research branches 5954 | -9/Exiles | Exiles lab attacked by MAIN.C 6136 | -9/Exiles | Discovered new exit (range 14) 6175 | -9/Exiles | Left Exiles lab with Field Lobotomy Kit 6175 | -9/Exiles | Entered Mines 6463 | -8/Mines | Build established: Skirmisher 6478 | -8/Mines | Discovered new exit (range 7) 7004 | -8/Mines | Build established: Mutant 7361 | -8/Mines | Discovered new exit (range 9) 7396 | -8/Mines | Entered Materials 7396 | -8/Materials | Evolved 2 slots: Propulsion x1, Utility x1 7397 | -8/Materials | Loaded intel: 12 terminal locations 7624 | -8/Materials | Discovered new exit (range 14) 7800 | -8/Materials | Build established: Skirmisher 8258 | -8/Materials | Discovered new exit (range 16) 8338 | -8/Materials | Entered Factory 8338 | -7/Factory | Evolved 2 slots: Propulsion x1, Utility x1 8584 | -7/Factory | Identified exit to Storage 8584 | -7/Factory | Identified exit to Lower Caves 8922 | -7/Factory | Entered Lower Caves 8924 | -7/Lower Caves | Imp. Assault Rifle stolen by Master Thief 9108 | -7/Lower Caves | Encountered a Warlord checkpoint 9619 | -7/Lower Caves | Discovered new exit (range 18) 9638 | -7/Lower Caves | Identified exit to Lower Caves 9697 | -7/Lower Caves | Entered another Lower Caves area 9789 | -7/Lower Caves | Learned 4 Factory zone layouts 9822 | -7/Lower Caves | Learned Factory stockpile data 10009 | -7/Lower Caves | Found Imp. Powered Armor 10150 | -7/Lower Caves | Discovered new exit (range 9) 10159 | -7/Lower Caves | Identified exit to Zion 10175 | -7/Lower Caves | Entered Zion 10197 | -7/Zion | Given the Hacking Drone Bay 10371 | -7/Zion | Discovered new exit (range 18) 10493 | -7/Zion | Learned Factory terminal intel 10550 | -7/Zion | Learned location of Extension (-6) 10653 | -7/Zion | Found Prototype Special Weapon 10655 | -7/Zion | Found Prototype Special Weapon 10658 | -7/Zion | Found Prototype Special Weapon 10661 | -7/Zion | Found Prototype Special Weapon 10766 | -7/Zion | Acquired unknown access codes intercepted by a Zionite 10804 | -7/Zion | Received a visual enhancement algorithm 10943 | -7/Zion | Visited the Megawrench Repair Shop 10943 | -7/Zion | Megawrench repaired 8 parts 11078 | -7/Zion | Discovered new exit (range 5) 11079 | -7/Zion | Saw the warning signs outside the Deep Caves entrance 11080 | -7/Zion | Identified RU-N14's Throwing Claymores (x4) 11084 | -7/Zion | Identified exit to Deep Caves 11086 | -7/Zion | Entered Deep Caves 11158 | -7/Deep Caves | Found Surveybot 24 Chip 11160 | -7/Deep Caves | Found Surveybot 24 Scanner 11255 | -7/Deep Caves | Attacked by Z-Imprinter 11257 | -7/Deep Caves | Z-Facility disabled 11265 | -7/Deep Caves | Destroyed Z-Imprinter 11359 | -7/Deep Caves | Build established: Mutant 11828 | -7/Deep Caves | Spotted as-33834 12148 | -7/Deep Caves | Discovered new exit (range 7) 12154 | -7/Deep Caves | Identified exit to Proximity Caves 12156 | -7/Deep Caves | Entered Proximity Caves 12157 | -6/Proximity Caves | Identified exit to Factory 12475 | -6/Proximity Caves | Build established: Assassin 12597 | -6/Proximity Caves | Learned Factory emergency access door positions 13320 | -6/Proximity Caves | Entered Factory 13320 | -6/Factory | Evolved 2 slots: Propulsion x1, Utility x1 13321 | -6/Factory | Identified exit to Lower Caves 13325 | -6/Factory | Loaded intel: 28 terminal locations 13482 | -6/Factory | Repaired Imp. Powered Armor 13522 | -6/Factory | Build established: Mutant 13593 | -6/Factory | Discovered new exit (range 13) 13610 | -6/Factory | Identified exit to Factory 13844 | -6/Factory | Identified exit to Extension 14144 | -6/Factory | Destroyed 7 combat bots 14177 | -6/Factory | Cargo convoy interrupted 14207 | -6/Factory | Entered Extension 14383 | -6/Extension | Rescued a captive Derelict 14460 | -6/Extension | Rescued a captive Derelict 14511 | -6/Extension | Rescued a captive Derelict 14547 | -6/Extension | Rescued a captive Derelict 14548 | -6/Extension | Rescued a captive Derelict 15030 | -6/Extension | Rescued a captive Derelict 15043 | -6/Extension | Rescued a captive Derelict 15155 | -6/Extension | Rescued A7 15337 | -6/Extension | Spotted B-75 Beast 15343 | -6/Extension | Assimilated B-75 Beast with FLK Orb 15354 | -6/Extension | Spotted B-75 Beast 15381 | -6/Extension | Allies destroyed B-75 Beast 15482 | -6/Extension | Disrupted transfer network 15879 | -6/Extension | Discovered exit to Factory (range 10) 15880 | -6/Extension | Discovered new exit (range 6) 15922 | -6/Extension | Entered Cetus 15922 | -6/Cetus | Accompanied by 9 allies (A7) 15927 | -6/Cetus | Acquired a Cetus Manufacturing Module code from A7 15939 | -6/Cetus | Spotted Cetus Guard 15939 | -6/Cetus | Spotted Cetus Guard 15941 | -6/Cetus | Spotted Cetus Guard 15942 | -6/Cetus | Spotted Cetus Guard 15958 | -6/Cetus | Destroyed Cetus Guard 15959 | -6/Cetus | Allies destroyed Cetus Guard 15961 | -6/Cetus | Allies destroyed Cetus Guard 15965 | -6/Cetus | Destroyed Cetus Guard 16048 | -6/Cetus | Build established: Commander-Tank 16082 | -6/Cetus | Started Cetus Manufacturing Module 16107 | -6/Cetus | Manufactured an Enhanced Grunt 16107 | -6/Cetus | Discovered new exit (range 16) 16132 | -6/Cetus | Manufactured an Enhanced Grunt 16134 | -6/Cetus | Spotted Cetus Guard 16134 | -6/Cetus | Spotted Cetus Guard 16135 | -6/Cetus | Destroyed Cetus Guard 16137 | -6/Cetus | Spotted Cetus Guard 16138 | -6/Cetus | Destroyed Cetus Guard 16138 | -6/Cetus | Spotted Cetus Guard 16153 | -6/Cetus | Allies destroyed Cetus Guard 16154 | -6/Cetus | Destroyed Cetus Guard 16157 | -6/Cetus | Manufactured an Enhanced Grunt 16161 | -6/Cetus | Discovered exit to Factory (range 15) 16167 | -6/Cetus | Met Revision 17 16182 | -6/Cetus | Manufactured an Enhanced Grunt 16207 | -6/Cetus | Manufactured an Enhanced Grunt 16233 | -6/Cetus | Escorted A7 to Cetus Mainframe 16430 | -6/Cetus | Destroyed A7 16436 | -6/Cetus | Extracted ID and sensor layout for unrecognized location from A7's data core 16443 | -6/Cetus | Found Prototype Protection 16443 | -6/Cetus | Identified Med. Regenerative Plating 16475 | -6/Cetus | Entered Archives 16475 | -6/Archives | Accompanied by 8 allies 16657 | -6/Archives | Found Prototype Device 16657 | -6/Archives | Identified Exp. Thermal Shield 16835 | -6/Archives | Discovered exit to Factory (range 15) 16920 | -6/Archives | Build established: Scavenger-Mutant 17034 | -6/Archives | Discovered new exit (range 15) 17131 | -6/Archives | Discovered new exit (range 14) 17732 | -6/Archives | Entered Hub_04(d) 17794 | -6/Hub_04(d) | Discovered exit to Factory (range 24) 17901 | -6/Hub_04(d) | Build established: Scavenger-Skirmisher 18477 | -6/Hub_04(d) | Network Hub disabled 18808 | -6/Hub_04(d) | Spotted Lightning 18810 | -6/Hub_04(d) | Spotted Lightning 18812 | -6/Hub_04(d) | Spotted Lightning 18838 | -6/Hub_04(d) | Assimilated Lightning with FLK Orb 18845 | -6/Hub_04(d) | Assimilated Lightning with FLK Orb 18892 | -6/Hub_04(d) | Destroyed Lightning 18900 | -6/Hub_04(d) | Found Prototype Energy Cannon 18924 | -6/Hub_04(d) | Found Prototype Processor 18924 | -6/Hub_04(d) | Identified Exp. Targeting Computer 19094 | -6/Hub_04(d) | Found Prototype Device 19094 | -6/Hub_04(d) | Identified EM Dispersion Field 19099 | -6/Hub_04(d) | Destroyed Lightning 19116 | -6/Hub_04(d) | Found Prototype Energy Cannon 19116 | -6/Hub_04(d) | Identified EMDS (x2) 19137 | -6/Hub_04(d) | Build established: Scavenger-Mutant 19274 | -6/Hub_04(d) | Destroyed Lightning 19297 | -6/Hub_04(d) | Found Prototype Device 19297 | -6/Hub_04(d) | Identified Exp. Phase Shifter 19314 | -6/Hub_04(d) | Found Exp. Targeting Computer 19626 | -6/Hub_04(d) | Network Hub disabled 19765 | -6/Hub_04(d) | Spotted Lightning 19765 | -6/Hub_04(d) | Spotted Lightning 19765 | -6/Hub_04(d) | Spotted Lightning 19832 | -6/Hub_04(d) | First assault squad dispatched 19841 | -6/Hub_04(d) | Entered Factory 19841 | -5/Factory | Evolved 2 slots: Power x1, Utility x1 19911 | -5/Factory | Fabricated Hcp. Storage Unit? 19951 | -5/Factory | Identified exit to Upper Caves 20483 | -5/Factory | Build established: Scavenger-Assassin 20501 | -5/Factory | Repaired EM Dispersion Field 20807 | -5/Factory | Spotted B-75 Beast 20814 | -5/Factory | Destroyed B-75 Beast 20857 | -5/Factory | Build established: Scavenger-Mutant 20943 | -5/Factory | Entered Upper Caves 21464 | -5/Upper Caves | Discovered new exit (range 6) 21469 | -5/Upper Caves | Identified exit to Upper Caves 21506 | -5/Upper Caves | Entered another Upper Caves area 21507 | -5/Upper Caves | Encountered a Warlord checkpoint 21525 | -5/Upper Caves | Discovered new exit (range 15) 21560 | -5/Upper Caves | Identified exit to Factory 21567 | -5/Upper Caves | Attracted the attention of an 0b10 checkpoint 21720 | -5/Upper Caves | Discovered new exit (range 10) 21756 | -5/Upper Caves | Learned Factory emergency access door positions 21811 | -5/Upper Caves | Identified exit to Warlord 21813 | -5/Upper Caves | Entered Warlord 21850 | -5/Warlord | System corruption cleaned by Quarantine Array 22084 | -5/Warlord | Found Prototype Special Weapon 22086 | -5/Warlord | Found Prototype Special Weapon 22088 | -5/Warlord | Found Prototype Special Weapon 22088 | -5/Warlord | Identified RU-N14's Throwing Claymores v3 (x3) 22091 | -5/Warlord | Found RU-N14's Throwing Claymores v3 22093 | -5/Warlord | Found RU-N14's Throwing Claymores v3 22096 | -5/Warlord | Found RU-N14's Throwing Claymores v3 22454 | -5/Warlord | Warlord's base attacked by MAIN.C 22659 | -5/Warlord | Met Warlord 22709 | -5/Warlord | Found Prototype Energy Cannon 22709 | -5/Warlord | Identified Vortex Driver 22712 | -5/Warlord | Found Vortex Driver 22768 | -5/Warlord | Found Prototype Hackware 22772 | -5/Warlord | Found Prototype Processor 22772 | -5/Warlord | Identified Exp. Target Analyzer 22778 | -5/Warlord | Found Prototype Reactor 22778 | -5/Warlord | Identified Vortex Chain Reactor 22804 | -5/Warlord | Warlord forces counterattacked 22896 | -5/Warlord | Spotted Striker 23047 | -5/Warlord | Discovered new exit (range 15) 23055 | -5/Warlord | Spotted Striker 23061 | -5/Warlord | Spotted Striker 23067 | -5/Warlord | Destroyed Striker 23071 | -5/Warlord | Destroyed Striker 23092 | -5/Warlord | Destroyed 10 combat bots 23098 | -5/Warlord | Identified exit to Proximity Caves 23129 | -5/Warlord | Warlord base infiltrated, sounded retreat 23129 | -5/Warlord | Entered Proximity Caves 23129 | -4/Proximity Caves | Accompanied by 1 ally 23369 | -4/Proximity Caves | Attracted the attention of an 0b10 checkpoint 23431 | -4/Proximity Caves | Attracted the attention of an 0b10 outpost 23465 | -4/Proximity Caves | Destroyed 10 combat bots 23673 | -4/Proximity Caves | Learned Research stockpile data 23694 | -4/Proximity Caves | Learned Research emergency access door positions 23757 | -4/Proximity Caves | Discovered exit to Factory (range 15) 23971 | -4/Proximity Caves | System corruption reached 10% 23972 | -4/Proximity Caves | Entered Factory 23972 | -4/Factory | Accompanied by 1 ally 23972 | -4/Factory | Evolved 2 slots: Propulsion x1, Utility x1 24148 | -4/Factory | Sucked down chute 24148 | -4/Factory | Entered Waste 24195 | -4/Waste | Spotted C-40 Crusher 24198 | -4/Waste | Destroyed C-40 Crusher 24211 | -4/Waste | Spotted C-40 Crusher 24213 | -4/Waste | Spotted C-40 Crusher 24253 | -4/Waste | Destroyed C-40 Crusher 24267 | -4/Waste | Destroyed C-40 Crusher 24304 | -4/Waste | Spotted C-40 Crusher 24318 | -4/Waste | Destroyed C-40 Crusher 24336 | -4/Waste | Spotted C-40 Crusher 24378 | -4/Waste | Destroyed C-40 Crusher 24401 | -4/Waste | Spotted C-40 Crusher 24406 | -4/Waste | Destroyed C-40 Crusher 24466 | -4/Waste | Discovered new exit (range 13) 24473 | -4/Waste | Warlord forces began an assault 24737 | -4/Waste | Identified exit to Factory 24739 | -4/Waste | Entered Factory 24785 | -4/Factory | Build established: Scavenger-Assassin 24806 | -4/Factory | Repaired Centrium Medium Armor Plating 24850 | -4/Factory | Repaired Broken Force Lance 25050 | -4/Factory | Repaired Broken EM Dispersion Field 25828 | -4/Factory | Identified exit to Upper Caves 25983 | -4/Factory | Fabricated Microactuators? 26028 | -4/Factory | Build established: Scavenger-Mutant 26862 | -4/Factory | Identified Ghost Barrier 27315 | -4/Factory | Entered Upper Caves 27556 | -4/Upper Caves | Identified exit to Upper Caves 27674 | -4/Upper Caves | Entered another Upper Caves area 27692 | -4/Upper Caves | Discovered new exit (range 32) 27774 | -4/Upper Caves | Identified exit to Research 27784 | -4/Upper Caves | Learned location of Quarantine (-3) 28188 | -4/Upper Caves | Learned Research garrison access intel 28313 | -4/Upper Caves | Attracted the attention of an 0b10 checkpoint 28517 | -4/Upper Caves | Discovered new exit (range 5) 28521 | -4/Upper Caves | Identified exit to Zhirov 28566 | -4/Upper Caves | Entered Zhirov 28566 | -4/Zhirov | Discovered new exit (range 3) 28589 | -4/Zhirov | Met Zhirov 28611 | -4/Zhirov | Learned location of Testing (-2) 28611 | -4/Zhirov | Learned location of Command (-1) 28624 | -4/Zhirov | Zhirov requested help retrieving the SGEMP Prototype 28643 | -4/Zhirov | Found Alien Artifact 28643 | -4/Zhirov | Identified Integrated Reactor 28643 | -4/Zhirov | Installed Integrated Reactor, increased core energy generation (+10) 28716 | -4/Zhirov | Found Alien Artifact 28762 | -4/Zhirov | Identified exit to Proximity Caves 28763 | -4/Zhirov | Entered Proximity Caves 29096 | -3/Proximity Caves | Attracted the attention of an 0b10 checkpoint 29472 | -3/Proximity Caves | Discovered exit to Research (range 10) 29563 | -3/Proximity Caves | Entered Research 29563 | -3/Research | Evolved 2 slots: Propulsion x1, Utility x1 29564 | -3/Research | Identified exit to Armory 29567 | -3/Research | Loaded intel: 4 garrison access locations 30027 | -3/Research | Discovered new exit (range 14) 30151 | -3/Research | Found Prototype Device 30151 | -3/Research | Identified Adv. Kinecellerator 30313 | -3/Research | First assault squad dispatched 30325 | -3/Research | Entered Armory 30444 | -3/Armory | Found Prototype Slashing Weapon 30444 | -3/Armory | Identified Vibroblade 30451 | -3/Armory | Found Vibroblade 30454 | -3/Armory | Found Vibroblade 30624 | -3/Armory | Found Prototype Launcher 30635 | -3/Armory | Identified Hellfire Missile Launcher 30641 | -3/Armory | Found Prototype Launcher 30645 | -3/Armory | Identified Adv. Micro-nuke Launcher 30649 | -3/Armory | Found Adv. Micro-nuke Launcher 30700 | -3/Armory | Found Vibroblade 30704 | -3/Armory | Found Vibroblade 30707 | -3/Armory | Found Vibroblade 30709 | -3/Armory | Found Vibroblade 30711 | -3/Armory | Found Vibroblade 30771 | -3/Armory | Energy Cycler disabled 30858 | -3/Armory | Identified Transdimensional Reconstructor 30858 | -3/Armory | Warped through subspace to slip node 30858 | -3/Armory | Discovered new exit (range 1) 30858 | -3/Armory | Identified exit to Lab 30908 | -3/Armory | Entered Lab 30908 | -3/Lab | Discovered new exit (range 9) 30917 | -3/Lab | Identified exit to Research 30921 | -3/Lab | Hidden lab's door opened automatically 30921 | -3/Lab | Sensor layout match revealed 30922 | -3/Lab | Gained access to the hidden lab's interior 31006 | -3/Lab | Found Alien Artifact 31006 | -3/Lab | Identified Integrated Dissipator 31006 | -3/Lab | Installed Integrated Dissipator, increased core heat dissipation (+20) 31015 | -3/Lab | Found Alien Artifact 31015 | -3/Lab | Identified Core Expander 31015 | -3/Lab | Installed Core Expander, added new Power slot 31070 | -3/Lab | Found Prototype Energy Cannon 31071 | -3/Lab | Identified Warp Cannon 31104 | -3/Lab | Found Warp Cannon 31168 | -3/Lab | Found Prototype Protection 31180 | -3/Lab | Identified Hvy. Regenerative Plating 31225 | -3/Lab | Found Prototype Hackware 31227 | -3/Lab | Identified Deep Network Scanner 31239 | -3/Lab | Found Transdimensional Reconstructor 31243 | -3/Lab | Found Alien Artifact 31272 | -3/Lab | Entered Research 31272 | -2/Research | Warlord forces began assault on 0b10 31272 | -2/Research | Evolved 2 slots: Propulsion x1, Utility x1 31282 | -2/Research | Identified exit to Testing 31382 | -2/Research | Research machine network offline 31418 | -2/Research | Discovered new exit (range 13) 31693 | -2/Research | Borebot progress halted 31704 | -2/Research | Spotted 7Q-8PS(H) 31748 | -2/Research | Found Antimissile System 31921 | -2/Research | Entered Access 31921 | -1/Access | Evolved 2 slots: Utility x1, Weapon x1 31967 | -1/Access | Garrison activated, responded to threat 31990 | -1/Access | Fabricated Cmb. Antigrav System? 32145 | -1/Access | Identified exit to Command 32198 | -1/Access | Allied Derelicts emerged from ambush trap array 32361 | -1/Access | Lost 3 parts (1p1n1u) 32381 | -1/Access | Entered Command 32610 | -1/Command | Repaired Cmb. Gravmag System 32645 | -1/Command | Repaired Antimissile System 32740 | -1/Command | Build established: Hacker-Mutant 33001 | -1/Command | Repaired Cmb. Antigrav System 33221 | -1/Command | Found Antimissile System 33375 | -1/Command | Spotted M Guard 33390 | -1/Command | Spotted Combat Programmer 33391 | -1/Command | Spotted Combat Programmer 33402 | -1/Command | Destroyed Combat Programmer 33423 | -1/Command | Spotted M Guard 33449 | -1/Command | Destroyed Combat Programmer 33499 | -1/Command | Destroyed M Guard 33825 | -1/Command | Destroyed M Guard 33825 | -1/Command | All MAIN.C guards destroyed 33842 | -1/Command | Found Prototype Launcher 33842 | -1/Command | Identified Ragnarok Missile Launcher 33874 | -1/Command | Found Prototype Processor 33874 | -1/Command | Identified Exp. Targeting Computer 33943 | -1/Command | Disengaged cave seal 33943 | -1/Command | Derelicts emerged from the dark tunnel 33943 | -1/Command | Welcomed Warlord to Command 34005 | -1/Command | Warlord commented on Warlord statues 34307 | -1/Command | Build established: Scavenger-Mutant 34441 | -1/Command | P-80 Master assimilated allied WR-TQ1(h) 34456 | -1/Command | P-80 Master assimilated allied LW-OTV(g) 34486 | -1/Command | 0b10 Conduit disabled 34486 | -1/Command | Met MAIN.C 34510 | -1/Command | MAIN.C activated Command garrisons 34593 | -1/Command | Core integrity fell below 50% 34621 | -1/Command | Core integrity fell below 20% 34627 | -1/Command | Destroyed by MAIN.C with Omega Cannon Last Messages --------------- 34605_ K-01 Serf collects debris. 34606_ RV-ZQJ(M) destroyed. 34608_ K-01 Serf collects debris. 34610_ OM-65H(M) destroyed. 34612_ K-01 Serf collects debris. 34614_ Adv. Armor Integrity Analyzer destroyed. 34614_ Critical hit (Blast). 34615_ K-01 Serf collects debris. 34616_ Destroyed Prototype Reactor. 34617_ Vibroblade destroyed. 34617_ Critical hit (Blast). 34618_ K-01 Serf collects debris. 34620_ Spk. Medium Treads destroyed. 34620_ Knocked back. 34621_ Dropped Vibroblade. 34622_ K-01 Serf collects debris. 34623_ Knocked back. 34623_ Acquired 25 matter. 34624_ K-01 Serf destroyed. 34625_ Acquired Vibroblade. Map ----- +----------------------------------------------------+ | ?????????????????????????????????????????????????? | | ?????????????????????????????????????????????????? | | ?????????????????????????????????????????????????? | | ?????????????????????????????????????????????????? | | ?????????????????????????????????????????????????? | | ?????????????????????????????????????????????????? | | ?????????????????????????????????????????????????? | | ?????????????????????????????????????????????????? | | ????????????????????????????###??????????????????? | | ???????????????##############"######?????????????? | | ???????????????"""""" " "" #?????????????? | | ????????????????? " #?????????????? | | ????????????????""" ############### | | ?????????????#""""""" | | ??????????????" " %% | | ??????????????"" """" %|%=% | | ?????????????#"" """" = |%!%############### | | ?????????????# " " " % % #?????????????? | | ?????????????# " "" !% !% #?????????????? | | ?????????????# " %! = ! "#?????????????? | | ?????????????#""""" %[%%M """"#?????????????? | | ?????????????#"" %d[[=! """#?????????????? | | ?????????????# !%% !" """""#?????????????? | | ?????????????# !%!%" %" #?????????????? | | ?????????????# !!]= %" " #?????????????? | | ?????????????" ! @ """ " #?????????????? | | ?????????????" """" #?????????????? | | ?????????????" " #?????????????? | | ?????????????# " " " " #?????????????? | | ?????????????# " " """"""""#?????????????? | | ?????????????# " " " ??????????????? | | ?????????????######################??????????????? | | ?????????????????????????????????????????????????? | | ?????????????????????????????????????????????????? | | ?????????????????????????????????????????????????? | | ?????????????????????????????????????????????????? | | ?????????????????????????????????????????????????? | | ?????????????????????????????????????????????????? | | ?????????????????????????????????????????????????? | | ?????????????????????????????????????????????????? | | ?????????????????????????????????????????????????? | | ?????????????????????????????????????????????????? | | ?????????????????????????????????????????????????? | | ?????????????????????????????????????????????????? | | ?????????????????????????????????????????????????? | | ?????????????????????????????????????????????????? | | ?????????????????????????????????????????????????? | | ?????????????????????????????????????????????????? | | ?????????????????????????????????????????????????? | | ?????????????????????????????????????????????????? | +----------------------------------------------------+ Best States ------------- Heat Dissipation 110 Coolant Potential 120 Energy Generation 83 Energy Capacity 1300 Matter Stores 380 Matter Capacity 400 Sight Range 20 Robot Scan Range 20 Terrain Scan Range 24 Terrain Scan Density 2010 Jamming Range 16 Cloak Strength 3 Power Amplification 30 Armor Coverage 675 Resistance: EM 75 Utility Shielding 90 Weapon Shielding 66 Point Defense Rating 240 Melee Speed Boost 40 Evasion (%) 71 Targeting Accuracy 12 Melee Accuracy 8 Target Analysis 10 Armor Integrity Analysis 40 Recoil Reduction 3 Offensive Hacking 39 Defensive Hacking 56 Item Schematics ----------------- Hcp. Storage Unit | -10/Materials | Hacked Cmb. Airjet | -9/Materials | Scanalyzed Exp. Sensor Array | -9/Materials | Scanalyzed Hacking Suite | -9/Materials | Scanalyzed Imp. Carbon-fiber Leg | -8/Materials | Scanalyzed Plasma Cutter | -8/Materials | Scanalyzed Energy Well | -7/Zion | Archive System Guard | -7/Zion | Archive Mak. Leg | -7/Zion | Archive Lgt. Fission Core | -7/Zion | Archive Flak Gun | -7/Zion | Archive Recoil Nullifier | -7/Zion | Archive Imp. Shock Absorption System | -7/Zion | Archive Imp. System Backup Module | -7/Zion | Archive Mak. Laser | -7/Zion | Archive Plasma Rifle | -7/Zion | Archive Microactuators | -7/Zion | Archive Power Amplifier | -7/Zion | Archive EM Dispersion Field | -4/Factory | Scanalyzed Centrium Medium Armor Plating | -4/Factory | Scanalyzed Cmb. Antigrav System | -4/Factory | Scanalyzed Assault Drone Bay | -4/Zhirov | Free Exp. Heat Sink | -4/Zhirov | Free Exp. Optical Array | -4/Zhirov | Free Imp. Arc Thrower | -4/Zhirov | Free Robot Schematics ------------------ L-41 Fighter | -7/Zion | Archive L-31 Rogue | -7/Zion | Archive H-55 Commando | -7/Zion | Archive Fabricated ------------ Hcp. Storage Unit | x1 | -5/Factory Microactuators | x2 | -4/Factory Cmb. Antigrav System | x2 | -1/Access Alien Tech Used ----------------- Integrated Reactor Transdimensional Reconstructor Integrated Dissipator Core Expander Achievements -------------- None Challenges ------------ None Game ------ Seed BattleVisualArray Manual? 0 Play Time 05:35:09 Cumulative 502.1 hours Start 2021.11.18 @ 03:23:37 End 2021.11.19 @ 22:53:58 Sessions 15 Manual Loads 0 Difficulty Rogue Special Mode None Game No. 483 Rogue 483 Adventurer 0 Explorer 0 Win Type - Total 12 Types 9/0/2/1/0/0/0/0/0 Lore% 83 Gallery% 94 Achievement% 72 Wizard Run 0 Options --------- ASCII 0 Keyboard 0 Movement Mouse Keybinds 1 Fullscreen 2 Font 24/Smallcaps Map View 76x50 Tactical HUD 1 Map Filters NONE Filters NONE Steam 1 RUN: 78e349ce-3229-4a2a-ac95-846ba8e27fa1